Workbook

Sheet BExRepositorySheet (hidden)
A1: 7

Sheet Ingresos
A3: EMPRESA DE ACUEDUCTO ALCANTARILLADO DE BOGOTA
A4: EJECUCION PRESUPUESTAL DE INGRESOS
A5: A 31 DE MAYO DE 2019
C6: 1 | D6: 2 | E6: 3 | F6: 4 | G6: 5 | H6: 6 | I6: 7=(6/4) | J6: 8=(4-6)
A7: CODIGO SECRETARIA DE HACIENDA | B7: RUBRO | C7: PRESUPUESTO INICIAL | D7: MODIFICACIONES MES | E7: MODIFICACIONES ACUMULADAS | F7: PRESUPUESTO DEFINITIVO | G7: RECAUDOS MES | H7: RECAUDOS ACUMULADOS | I7: % EJEC PPTAL | J7: SALDO POR RECAUDAR
A8: TOTAL INGRESOS + DISPONIBILIDAD INICIAL | C8: 5419077626000 | D8: 306843335701 | E8: 306843335701 | F8: 5725920961701 | G8: 445884412048 | H8: 1911079158623 | I8: 0.3337592627 | J8: 3814841803078
A9: 310000000000000 | B9: DISPONIBILIDAD INICIAL | C9: 813719123000 | D9: 272051141955 | E9: 272051141955 | F9: 1085770264955 | G9: 272051141955 | H9: 1085770264955 | I9: 1
A10: 310000000000000 | B10: DISPONIBILIDAD INICIAL | C10: 813719123000 | D10: 272051141955 | E10: 272051141955 | F10: 1085770264955 | G10: 272051141955 | H10: 1085770264955 | I10: 1
A11: 320000000000000 | B11: INGRESOS | C11: 4605358503000 | D11: 34792193746 | E11: 34792193746 | F11: 4640150696746 | G11: 173833270093 | H11: 825308893668 | I11: 0.1778625195 | J11: 3814841803078
A12: 321000000000000 | B12: INGRESOS CORRIENTES | C12: 2165376401000 | D12: -476 | E12: -476 | F12: 2165376400524 | G12: 167585841891 | H12: 749412335095 | I12: 0.3460887146 | J12: 1415964065429
A13: 321010000000000 | B13: INGRESOS DE EXPLOTACION | C13: 1758896574000 | F13: 1758896574000 | G13: 167111735703 | H13: 741821406498 | I13: 0.4217538527 | J13: 1017075167502
A14: 321010200000000 | B14: VENTA DE SERVICIOS | C14: 1733463321000 | F14: 1733463321000 | G14: 165336769355 | H14: 731393165181 | I14: 0.4219259539 | J14: 1002070155819
A15: 321010201000000 | B15: SERVICIO ACUEDUCTO | C15: 944794737000 | F15: 944794737000 | G15: 85177161128 | H15: 375942110697 | I15: 0.3979087689 | J15: 568852626303
A16: 321010202000000 | B16: SERVICIO ALCANTARILLADO | C16: 788668584000 | F16: 788668584000 | G16: 79947575532 | H16: 354098083954 | I16: 0.4489821088 | J16: 434570500046
A17: 321010203000000 | B17: SERVICIO ASEO | G17: 212032695 | H17: 1352970530 | J17: -1352970530
A18: 321019900000000 | B18: OTROS INGRESOS DE EXPLOTACION | C18: 25433253000 | F18: 25433253000 | G18: 1774966348 | H18: 10428241317 | I18: 0.4100238895 | J18: 15005011683
A19: 321019902000000 | B19: INTERESES A USUARIOS | C19: 2900648000 | F19: 2900648000 | G19: 347266627 | H19: 1730691508 | I19: 0.5966568532 | J19: 1169956492
A20: 321019903000000 | B20: PUBLICACIONES | C20: 5700000 | F20: 5700000 | G20: 3399527 | H20: 15105826 | I20: 2.650144912 | J20: -9405826
A21: 321019904000000 | B21: SERVICIOS | C21: 639109000 | F21: 639109000 | G21: 47734870 | H21: 106107739 | I21: 0.1660244794 | J21: 533001261
A22: 321019905000000 | B22: CUOTAS PARTES PENSIONALES | G22: 140021056 | H22: 721589070 | J22: -721589070
A23: 321019906000000 | B23: EXTRAORDINARIOS RECUPERACIÓN | G23: 638571157 | H23: 2476467886 | J23: -2476467886
A24: 321019907000000 | B24: INGRESOS CENTRAL HIDROELÉCTRICA | C24: 11085124000 | F24: 11085124000 | H24: 1009511807 | I24: 0.09106905859 | J24: 10075612193
A25: 321019908000000 | B25: SANCIONES Y MULTAS | G25: 22299258 | H25: 139070520 | J25: -139070520
A26: 321019909000000 | B26: COMISIONES | C26: 10802672000 | F26: 10802672000 | G26: 575673853 | H26: 4229696961 | I26: 0.3915417372 | J26: 6572975039
A27: 321020000000000 | B27: OTROS INGRESOS CORRIENTES | C27: 406479827000 | D27: -476 | E27: -476 | F27: 406479826524 | G27: 474106188 | H27: 7590928597 | I27: 0.01867479787 | J27: 398888897927
A28: 321020100000000 | B28: RENTAS CONTRACTUALES | C28: 406479827000 | D28: -476 | E28: -476 | F28: 406479826524 | G28: 474106188 | H28: 7590928597 | I28: 0.01867479787 | J28: 398888897927
A29: 321020199000000 | B29: OTRAS RENTAS CONTRACTUALES | C29: 406479827000 | D29: -476 | E29: -476 | F29: 406479826524 | G29: 474106188 | H29: 7590928597 | I29: 0.01867479787 | J29: 398888897927
A30: 322000000000000 | B30: TRANSFERENCIAS | C30: 239567781000 | D30: 25315303810 | E30: 25315303810 | F30: 264883084810 | H30: 36332524140 | I30: 0.1371643801 | J30: 228550560670
A31: 322030000000000 | B31: MUNICIPIOS | C31: 1601000000 | F31: 1601000000 | H31: 1277883968 | I31: 0.7981786184 | J31: 323116032
A32: 322030000000000 | B32: MUNICIPIOS | C32: 1601000000 | F32: 1601000000 | H32: 1277883968 | I32: 0.7981786184 | J32: 323116032
A33: 322040000000000 | B33: ADMINISTRACION CENTRAL | C33: 237966781000 | D33: 25315303810 | E33: 25315303810 | F33: 263282084810 | H33: 35054640172 | I33: 0.1331447987 | J33: 228227444638
A34: 322040300000000 | B34: SECRETARIA DISTRITAL DE HACIENDA | C34: 81747001000 | D34: 1277125638 | E34: 1277125638 | F34: 83024126638 | H34: 2500000000 | I34: 0.03011172898 | J34: 80524126638
A35: 322040500000000 | B35: SDH - MÍNIMO VITAL | C35: 71465000000 | F35: 71465000000 | J35: 71465000000
A36: 322040600000000 | B36: SDH - LEY 99 DE 1993 | C36: 84754780000 | F36: 84754780000 | J36: 84754780000
A37: 322040800000000 | B37: LEY 99 DE 1993, SUBSIDIOS Y MÍNIMO VITAL - VIGENCIA ANTERIOR | D37: 24038178172 | E37: 24038178172 | F37: 24038178172 | H37: 32554640172 | I37: 1.354288996 | J37: -8516462000
A38: 323000000000000 | B38: RECURSOS DE CAPITAL | C38: 2200414321000 | D38: 9476890412 | E38: 9476890412 | F38: 2209891211412 | G38: 6247428202 | H38: 39564034433 | I38: 0.01790315932 | J38: 2170327176979
A39: 323010000000000 | B39: RECURSOS DEL CREDITO | C39: 1976633221000 | D39: 7134971405 | E39: 7134971405 | F39: 1983768192405 | J39: 1983768192405
A40: 323010100000000 | B40: CREDITO INTERNO | C40: 1976633221000 | D40: 7134971405 | E40: 7134971405 | F40: 1983768192405 | J40: 1983768192405
A41: 323010101000000 | B41: VIGENCIA | C41: 1976633221000 | D41: 7134971405 | E41: 7134971405 | F41: 1983768192405 | J41: 1983768192405
A42: 323020000000000 | B42: RENDIMIENTOS POR OPERACIONES FINANCIERAS | C42: 73532847000 | F42: 73532847000 | G42: 5735816896 | H42: 36453759975 | I42: 0.4957479747 | J42: 37079087025
A43: 323020000000000 | B43: RENDIMIENTOS POR OPERACIONES FINANCIERAS | C43: 73532847000 | F43: 73532847000 | G43: 5735816896 | H43: 36453759975 | I43: 0.4957479747 | J43: 37079087025
A44: 323090000000000 | B44: OTROS RECURSOS DE CAPITAL | C44: 150248253000 | D44: 2341919007 | E44: 2341919007 | F44: 152590172007 | G44: 511611306 | H44: 3110274458 | I44: 0.02038318993 | J44: 149479897549
A45: 323090100000000 | B45: RECUPERACION PRESTAMOS - BIENESTAR | C45: 15650001000 | F45: 15650001000 | G45: 511611306 | H45: 2818782530 | I45: 0.1801138882 | J45: 12831218470
A46: 323090200000000 | B46: INDEMNIZACIONES COMPAÑIAS DE SEGURO | H46: 291491928 | J46: -291491928
A47: 323090300000000 | B47: RECURSOS FIDUCIA | C47: 103976295000 | D47: -1537 | E47: -1537 | F47: 103976293463 | J47: 103976293463
A48: 323099900000000 | B48: OTROS | C48: 30621957000 | D48: 2341920544 | E48: 2341920544 | F48: 32963877544 | J48: 32963877544

Sheet Gastos
A2: EMPRESA DE ACUEDUCTO ALCANTARILLADO DE BOGOTA
A3: EJECUCION PRESUPUESTAL DE GASTOS
A4: A 31 MAYO DEL 2019 | C4: 1 | D4: 2 | E4: 3 | F4: 4=(1+3) | G4: 5 | H4: 6=(4-5) | I4: 7 | J4: 8 | K4: 9=(8/6) | L4: 11 | M4: 12 | N4: 13=(12/6)
A5: CODIGO SECRETARIA DE HACIENDA | B5: RUBRO | C5: PRESUPUESTO INICIAL | D5: MODIFICACIONES MES | E5: MODIFICACIONES ACUMULADAS | F5: PRESUPUESTO DEFINITIVO | G5: SUSPENSION | H5: APROPIACION DISPONIBLE | I5: COMPROMISOS MES | J5: COMPROMISOS ACUMULADOS | K5: % EJEC PPTAL | L5: AUTORIZACIONES DE GIRO | N5: % EJEC AUT. GIRO
L6: MES | M6: ACUMULADO
A7: TOTAL GASTOS + DISPONIBILIDAD FINAL | C7: 5419077626000 | D7: 306843335701 | E7: 306843335701 | F7: 5725920961701 | H7: 5725920961701 | I7: 151730354320 | J7: 2357695713884 | K7: 0.4117583407 | L7: 165256356873 | M7: 847190648005 | N7: 0.1479570978
A8: 330000000000000 | B8: GASTOS | C8: 5180526062000 | D8: 118974927264 | E8: 118974927264 | F8: 5299500989264 | H8: 5299500989264 | I8: 151730354320 | J8: 2357695713884 | K8: 0.4448901356 | L8: 165256356873 | M8: 847190648005 | N8: 0.1598623436
A9: 331000000000000 | B9: GASTOS DE FUNCIONAMIENTO | C9: 1291563643000 | D9: 67092561782 | E9: 67092561782 | F9: 1358656204782 | H9: 1358656204782 | I9: 93418953532 | J9: 733943986933 | K9: 0.5401984581 | L9: 99912705999 | M9: 455746008213 | N9: 0.3354388009
A10: 331010000000000 | B10: SERVICIOS PERSONALES | C10: 358789399000 | D10: 142791249 | E10: 2882444384 | F10: 361671843384 | H10: 361671843384 | I10: 26696613547 | J10: 149225434295 | K10: 0.4125989817 | L10: 21739407532 | M10: 109479787226 | N10: 0.3027047563
A11: 331010100000000 | B11: SERVICIOS PERSONALES ASOCIADOS A LA NOMINA | C11: 225857398000 | E11: 299078879 | F11: 226156476879 | H11: 226156476879 | I11: 14661580064 | J11: 75127694475 | K11: 0.3321934243 | L11: 14614791510 | M11: 75080722973 | N11: 0.3319857296
A12: 331010101000000 | B12: SUELDOS PERSONAL DE NOMINA | C12: 126490927000 | E12: 145583526 | F12: 126636510526 | H12: 126636510526 | I12: 10086181491 | J12: 49406507983 | K12: 0.3901442623 | L12: 10086181491 | M12: 49406507983 | N12: 0.3901442623
A13: 331010102000000 | B13: GASTOS DE REPRESENTACION | C13: 75042000 | F13: 75042000 | H13: 75042000
A14: 331010103000000 | B14: HORAS EXTRAS, DOMINICALES, FESTIVOS, RECARGO NOCTURNO | C14: 16278640000 | F14: 16278640000 | H14: 16278640000 | I14: 1612958692 | J14: 7747409778 | K14: 0.4759248794 | L14: 1612958692 | M14: 7747409778 | N14: 0.4759248794
A15: 331010104000000 | B15: SUBSIDIO DE TRANSPORTE | C15: 1968514000 | F15: 1968514000 | H15: 1968514000 | I15: 99958562 | J15: 532007149 | K15: 0.2702582501 | L15: 99958562 | M15: 532007149 | N15: 0.2702582501
A16: 331010105000000 | B16: SUBSIDIO DE ALIMENTACION | C16: 9532780000 | F16: 9532780000 | H16: 9532780000 | I16: 678360490 | J16: 3795825466 | K16: 0.398186622 | L16: 678360490 | M16: 3795825466 | N16: 0.398186622
A17: 331010106000000 | B17: BONIFICACION POR SERVICIOS PRESTADOS | C17: 437010000 | F17: 437010000 | H17: 437010000 | I17: 15445546 | J17: 76889123 | K17: 0.1759436237 | L17: 15445546 | M17: 76889123 | N17: 0.1759436237
A18: 331010107000000 | B18: PRIMA SEMESTRAL | C18: 15809419000 | E18: 46745094 | F18: 15856164094 | H18: 15856164094 | I18: 46404275 | J18: 128145108 | K18: 0.008081721862 | L18: 46404275 | M18: 128145108 | N18: 0.008081721862
A19: 331010109000000 | B19: PRIMA DE NAVIDAD | C19: 16154480000 | E19: 23524325 | F19: 16178004325 | H19: 16178004325 | I19: 30165718 | J19: 71189045 | K19: 0.004400360117 | L19: 30165718 | M19: 71189045 | N19: 0.004400360117
A20: 331010110000000 | B20: PRIMA DE VACACIONES | C20: 17654651000 | E20: 15176975 | F20: 17669827975 | H20: 17669827975 | I20: 981670212 | J20: 4564728173 | K20: 0.2583346131 | L20: 981670212 | M20: 4564728173 | N20: 0.2583346131
A21: 331010111000000 | B21: PRIMA TECNICA | C21: 4209393000 | E21: 68048959 | F21: 4277441959 | H21: 4277441959 | I21: 312001867 | J21: 1571042298 | K21: 0.3672854741 | L21: 312001867 | M21: 1571042298 | N21: 0.3672854741
A22: 331010112000000 | B22: OTRAS PRIMAS Y BONIFICACIONES | C22: 10407642000 | F22: 10407642000 | H22: 10407642000 | I22: 331879514 | J22: 4420130760 | K22: 0.4247004999 | L22: 327738934 | M22: 4415807232 | N22: 0.4242850813
A23: 331010114000000 | B23: QUINQUENIO | C23: 6155108000 | F23: 6155108000 | H23: 6155108000 | I23: 423905723 | J23: 2446343117 | K23: 0.3974492595 | L23: 423905723 | M23: 2446343117 | N23: 0.3974492595
A24: 331010115000000 | B24: INDEMNIZACIONES LABORALES | C24: 100000000 | F24: 100000000 | H24: 100000000
A25: 331010116000000 | B25: CONVENCIONES COLECTIVAS O CONVENIOS | C25: 583792000 | F25: 583792000 | H25: 583792000 | I25: 42647974 | J25: 367476475 | K25: 0.6294647323 | M25: 324828501 | N25: 0.5564113606
A26: 331010200000000 | B26: SERVICIOS PERSONALES INDIRECTOS | C26: 67383543000 | D26: 142791249 | E26: 2583365505 | F26: 69966908505 | H26: 69966908505 | I26: 7642032588 | J26: 45033243750 | K26: 0.6436363234 | L26: 2802784496 | M26: 9505368695 | N26: 0.135855205
A27: 331010203000000 | B27: HONORARIOS EMPRESA | C27: 54909345000 | D27: 142791249 | E27: 2583365505 | F27: 57492710505 | H27: 57492710505 | I27: 7180215303 | J27: 42760360517 | K27: 0.7437527322 | L27: 2418635711 | M27: 7883951146 | N27: 0.1371295783
A28: 331010204000000 | B28: REMUNERACION SERVICIOS TECNICOS | C28: 1568517000 | F28: 1568517000 | H28: 1568517000 | I28: 152248971 | J28: 788477471 | K28: 0.5026897834 | L28: 74580471 | M28: 137011787 | N28: 0.08735116483
A29: 331010299000000 | B29: OTROS GASTOS DE PERSONAL | C29: 10905681000 | F29: 10905681000 | H29: 10905681000 | I29: 309568314 | J29: 1484405762 | K29: 0.1361130737 | L29: 309568314 | M29: 1484405762 | N29: 0.1361130737
A30: 331010300000000 | B30: APORTES PATRONALES AL SECTOR PRIVADO Y PUBLICO | C30: 65548458000 | F30: 65548458000 | H30: 65548458000 | I30: 4393000895 | J30: 29064496070 | K30: 0.4434047262 | L30: 4321831526 | M30: 24893695558 | N30: 0.3797754565
A31: 331010301000000 | B31: APORTES PATRONALES AL SECTOR PRIVADO | C31: 58397668000 | E31: -14458186868 | F31: 43939481132 | H31: 43939481132 | I31: 3046950862 | J31: 20221678671 | K31: 0.4602166013 | L31: 3026380917 | M31: 17284438902 | N31: 0.3933692082
A32: 331010301010000 | B32: CESANTÍAS FONDOS PRIVADOS | C32: 7625219000 | E32: -2380000000 | F32: 5245219000 | H32: 5245219000 | J32: 5082890907 | K32: 0.9690521801 | M32: 5082890907 | N32: 0.9690521801
A33: 331010301020000 | B33: PENSIONES FONDOS PRIVADOS | C33: 21171531000 | E33: -11478186868 | F33: 9693344132 | H33: 9693344132 | I33: 649002831 | J33: 3254716872 | K33: 0.3357682166 | L33: 651620015 | M33: 2608573107 | N33: 0.2691097181
A34: 331010301030000 | B34: SALUD EPS PRIVADAS | C34: 20828865000 | E34: -600000000 | F34: 20228865000 | H34: 20228865000 | I34: 1864458131 | J34: 9249440192 | K34: 0.4572397014 | L34: 1842422002 | M34: 7507854588 | N34: 0.3711456173
A35: 331010301050000 | B35: CAJA DE COMPENSACION | C35: 8772053000 | F35: 8772053000 | H35: 8772053000 | I35: 533489900 | J35: 2634630700 | K35: 0.3003436824 | L35: 532338900 | M35: 2085120300 | N35: 0.2377003764
A36: 331010302000000 | B36: APORTES PATRONALES AL SECTOR PUBLICO | C36: 7150790000 | E36: 14458186868 | F36: 21608976868 | H36: 21608976868 | I36: 1346050033 | J36: 8842817399 | K36: 0.4092196245 | L36: 1295450609 | M36: 7609256656 | N36: 0.3521340553
A37: 331010302010000 | B37: CESANTIAS FONDOS PÚBLICOS | E37: 2380000000 | F37: 2380000000 | H37: 2380000000 | J37: 2285717049 | K37: 0.9603853147 | M37: 2285717049 | N37: 0.9603853147
A38: 331010302020000 | B38: PENSIONES FONDOS PÚBLICOS | E38: 11478186868 | F38: 11478186868 | H38: 11478186868 | I38: 961713525 | J38: 4716173828 | K38: 0.4108814295 | L38: 944138636 | M38: 3873944379 | N38: 0.3375049059
A39: 331010302030000 | B39: SALUD EPS PUBLICOS | E39: 600000000 | F39: 600000000 | H39: 600000000 | I39: 21173608 | J39: 119656022 | K39: 0.1994267033 | L39: 20798573 | M39: 98237128 | N39: 0.1637285467
A40: 331010302040000 | B40: RIESGOS PROFESIONALES SECTOR PUBLICO | C40: 2124180000 | F40: 2124180000 | H40: 2124180000 | I40: 199942700 | J40: 970372900 | K40: 0.4568223503 | L40: 197030200 | M40: 766598100 | N40: 0.3608913086
A41: 331010302050000 | B41: ICBF | C41: 3036439000 | F41: 3036439000 | H41: 3036439000 | I41: 98025700 | J41: 450531800 | K41: 0.1483750538 | L41: 80088300 | M41: 350850300 | N41: 0.1155466321
A42: 331010302060000 | B42: SENA | C42: 1990171000 | F42: 1990171000 | H42: 1990171000 | I42: 65194500 | J42: 300365800 | K42: 0.150924619 | L42: 53394900 | M42: 233909700 | N42: 0.1175324633
A43: 331020000000000 | B43: GASTOS GENERALES | C43: 500514708000 | D43: 62366659612 | E43: 513633803 | F43: 501028341803 | H43: 501028341803 | I43: 53787439114 | J43: 259247769277 | K43: 0.517431346 | L43: 44485704361 | M43: 159909503946 | N43: 0.3191625914
A44: 331020100000000 | B44: ADQUISICION DE BIENES | C44: 48492183000 | D44: 17488687 | E44: 1706870260 | F44: 50199053260 | H44: 50199053260 | I44: 1368832243 | J44: 22238121798 | K44: 0.4429988287 | L44: 629275893 | M44: 9686810474 | N44: 0.1929679913
A45: 331020101000000 | B45: DOTACION | C45: 3286323000 | D45: 12891506 | E45: 12989870 | F45: 3299312870 | H45: 3299312870 | I45: 202644004 | J45: 903168467 | K45: 0.2737444136 | M45: 12749998 | N45: 0.003864440416
A46: 331020102000000 | B46: MATERIALES Y SUMINISTROS | C46: 11871646000 | D46: 3682427 | E46: 798348283 | F46: 12669994283 | H46: 12669994283 | I46: 1164849619 | J46: 4498296514 | K46: 0.355035402 | L46: 324037820 | M46: 471497496 | N46: 0.03721371024
A47: 331020103000000 | B47: GASTOS DE COMPUTADOR | C47: 29306737000 | E47: 889381573 | F47: 30196118573 | H47: 30196118573 | J47: 13227919313 | K47: 0.4380668754 | L47: 254623147 | M47: 9125855853 | N47: 0.3022194999
A48: 331020104000000 | B48: COMBUSTIBLES, LUBRICANTES Y LLANTAS | C48: 4027477000 | D48: 914754 | E48: 6150534 | F48: 4033627534 | H48: 4033627534 | I48: 1338620 | J48: 3608737504 | K48: 0.894663048 | L48: 50614926 | M48: 76707127 | N48: 0.01901690881
A49: 331020200000000 | B49: ADQUISICION DE SERVICIOS | C49: 168488698000 | D49: -714913636 | E49: -2695249434 | F49: 165793448566 | H49: 165793448566 | I49: 12326131106 | J49: 98161300268 | K49: 0.5920698382 | L49: 5165679405 | M49: 22898652165 | N49: 0.1381155429
A50: 331020201000000 | B50: VIATICOS Y GASTOS DE VIAJE | C50: 1178098000 | F50: 1178098000 | H50: 1178098000 | I50: 67362537 | J50: 278291721 | K50: 0.2362211981 | L50: 67919740 | M50: 174008588 | N50: 0.1477029823
A51: 331020202000000 | B51: GASTOS DE TRANSPORTE Y COMUNICACIÓN | C51: 15506533000 | E51: 174500000 | F51: 15681033000 | H51: 15681033000 | I51: 409507459 | J51: 11248103207 | K51: 0.7173062646 | L51: 890503514 | M51: 2421876077 | N51: 0.1544462075
A52: 331020203000000 | B52: IMPRESOS Y PUBLICACIONES | C52: 824609000 | D52: -190000000 | E52: -84305580 | F52: 740303420 | H52: 740303420 | I52: 111832059 | J52: 124908707 | K52: 0.1687263676 | L52: 3055808 | M52: 16132456 | N52: 0.02179168104
A53: 331020204000000 | B53: MANTENIMIENTO Y REPARACIONES | C53: 82189005000 | D53: -601773061 | E53: -2894430061 | F53: 79294574939 | H53: 79294574939 | I53: 10928658789 | J53: 46287224145 | K53: 0.5837375909 | L53: 2551932506 | M53: 3931348427 | N53: 0.049579034
A54: 331020205000000 | B54: ARRENDAMIENTOS | C54: 12050191000 | E54: -124000000 | F54: 11926191000 | H54: 11926191000 | I54: 13842012 | J54: 10064569208 | K54: 0.8439047478 | L54: 1056045526 | M54: 1465296548 | N54: 0.1228637499
A55: 331020206000000 | B55: SEGUROS | C55: 29125848000 | F55: 29125848000 | H55: 29125848000 | I55: 1336842 | J55: 19760696746 | K55: 0.6784591043 | M55: 13246437601 | N55: 0.4548000663
A56: 331020207000000 | B56: SUMINISTRO DE ALIMENTOS | C56: 4903521000 | F56: 4903521000 | H56: 4903521000 | J56: 395000000 | K56: 0.08055436084
A57: 331020208000000 | B57: SERVICIOS PUBLICOS | C57: 5865650000 | F57: 5865650000 | H57: 5865650000 | I57: 140257232 | J57: 4838982071 | K57: 0.8249694528 | L57: 502995000 | M57: 1372140610 | N57: 0.2339281427
A58: 331020209000000 | B58: CAPACITACION | C58: 900000000 | E58: -3124968 | F58: 896875032 | H58: 896875032 | I58: 44602898 | J58: 105201528 | K58: 0.1172978668 | L58: 2975000 | M58: 18798430 | N58: 0.0209599212
A59: 331020210000000 | B59: BIENESTAR E INCENTIVOS | C59: 4693616000 | D59: 153722082 | E59: 153722082 | F59: 4847338082 | H59: 4847338082
A60: 331020211000000 | B60: PROMOCION INSTITUCIONAL | C60: 6731186000 | D60: -171398000 | E60: -12146250 | F60: 6719039750 | H60: 6719039750 | I60: 27229600 | J60: 1643395800 | K60: 0.2445878967 | L60: 42867020 | M60: 71210889 | N60: 0.01059837293
A61: 331020212000000 | B61: INTERESES Y COMISIONES | C61: 3011310000 | F61: 3011310000 | H61: 3011310000 | I61: 430000000 | J61: 2723789171 | K61: 0.9045196845 | L61: 523406 | M61: 7877731 | N61: 0.002616047833
A62: 331020213000000 | B62: SALUD OCUPACIONAL | C62: 1367131000 | D62: 94535343 | E62: 94535343 | F62: 1461666343 | H62: 1461666343 | I62: 151501678 | J62: 619466964 | K62: 0.4238087351 | L62: 46861885 | M62: 101853808 | N62: 0.06968335044
A63: 331020214000000 | B63: PROGRAMAS Y CONVENIOS INSTITUCIONES | C63: 142000000 | F63: 142000000 | H63: 142000000 | J63: 71671000 | K63: 0.5047253521 | M63: 71671000 | N63: 0.5047253521
A64: 331020300000000 | B64: OTROS GASTOS GENERALES | C64: 283533827000 | D64: 63064084561 | E64: 1502012977 | F64: 285035839977 | H64: 285035839977 | I64: 40092475765 | J64: 138848347211 | K64: 0.487125925 | L64: 38690749063 | M64: 127324041307 | N64: 0.4466948483
A65: 331020301000000 | B65: IMPUESTOS, TASAS Y MULTAS | C65: 266871794000 | D65: 57071142926 | E65: -4209897006 | F65: 262661896994 | H65: 262661896994 | I65: 38119784396 | J65: 133875303583 | K65: 0.5096868069 | L65: 38675939412 | M65: 126889932837 | N65: 0.483092273
A66: 331020302000000 | B66: SENTENCIAS JUDICIALES | C66: 750000000 | F66: 750000000 | H66: 750000000 | I66: 3850000 | J66: 17724014 | K66: 0.02363201867 | L66: 3850000 | M66: 17724014 | N66: 0.02363201867
A67: 331020399000000 | B67: OTROS GASTOS GENERALES | C67: 15912033000 | D67: 5992941635 | E67: 5711909983 | F67: 21623942983 | H67: 21623942983 | I67: 1968841369 | J67: 4955319614 | K67: 0.229158929 | L67: 10959651 | M67: 416384456 | N67: 0.01925571374
A68: 331030000000000 | B68: TRANSFERENCIAS CORRIENTES | C68: 312085533000 | D68: 4877506774 | E68: 4578427895 | F68: 316663960895 | H68: 316663960895 | I68: 23591015395 | J68: 157741523950 | K68: 0.4981353846 | L68: 14178276175 | M68: 87461344713 | N68: 0.2761960801
A69: 331030300000000 | B69: TRANSFERENCIAS DE PREVISION Y SEGURIDAD SOCIAL | C69: 311435532000 | D69: 4647156177 | E69: 4348077298 | F69: 315783609298 | H69: 315783609298 | I69: 23583827065 | J69: 157590237274 | K69: 0.4990450189 | L69: 14171087845 | M69: 87310058037 | N69: 0.276486985
A70: 331030301000000 | B70: PENSIONES Y JUBILACIONES | C70: 199914405000 | E70: -299078879 | F70: 199615326121 | H70: 199615326121 | I70: 13928593092 | J70: 68265498135 | K70: 0.3419852546 | L70: 13577461988 | M70: 67887967031 | N70: 0.3400939615
A71: 331030302000000 | B71: CESANTIAS | C71: 17646342000 | F71: 17646342000 | H71: 17646342000 | I71: 466962057 | J71: 3266476869 | K71: 0.185107875 | L71: 466962057 | M71: 3266476869 | N71: 0.185107875
A72: 331030303000000 | B72: OTRAS TRANSFERENCIAS DE PREVISION SOCIAL | C72: 93874785000 | D72: 4647156177 | E72: 4647156177 | F72: 98521941177 | H72: 98521941177 | I72: 9188271916 | J72: 86058262270 | K72: 0.8734933685 | L72: 126663800 | M72: 16155614137 | N72: 0.1639798602
A73: 331030303010000 | B73: FONDO DE VIVIENDA | C73: 29566811000 | D73: 4647156177 | E73: 4647156177 | F73: 34213967177 | H73: 34213967177 | I73: 8569572116 | J73: 22569572116 | K73: 0.6596596062 | M73: 14000000000 | N73: 0.4091896133
A74: 331030303020000 | B74: PAGOS SERVICIOS MEDICOS CONVENCIONALES | C74: 64307974000 | F74: 64307974000 | H74: 64307974000 | I74: 618699800 | J74: 63488690154 | K74: 0.987259996 | L74: 126663800 | M74: 2155614137 | N74: 0.0335201687
A75: 331030400000000 | B75: OTRAS TRANSFERENCIAS | C75: 650001000 | D75: 230350597 | E75: 230350597 | F75: 880351597 | H75: 880351597 | I75: 7188330 | J75: 151286676 | K75: 0.1718480168 | L75: 7188330 | M75: 151286676 | N75: 0.1718480168
A76: 331030401000000 | B76: DESTINATARIOS DE OTRAS TRANSFERENCIAS | C76: 650001000 | D76: 230350597 | E76: 230350597 | F76: 880351597 | H76: 880351597 | I76: 7188330 | J76: 151286676 | K76: 0.1718480168 | L76: 7188330 | M76: 151286676 | N76: 0.1718480168
A77: 331040000000000 | B77: CUENTAS POR PAGAR | C77: 120174003000 | D77: -294395853 | E77: 59118055700 | F77: 179292058700 | H77: 179292058700 | I77: -10656114524 | J77: 167729259411 | K77: 0.935508581 | L77: 19509317931 | M77: 98895372328 | N77: 0.5515881353
A78: 331040000000000 | B78: CUENTAS POR PAGAR | C78: 120174003000 | D78: -294395853 | E78: 59118055700 | F78: 179292058700 | H78: 179292058700 | I78: -10656114524 | J78: 167729259411 | K78: 0.935508581 | L78: 19509317931 | M78: 98895372328 | N78: 0.5515881353
A79: 332000000000000 | B79: GASTOS DE OPERACION | C79: 317492682000 | D79: 23763704174 | E79: 23763704174 | F79: 341256386174 | H79: 341256386174 | I79: 3766148180 | J79: 192256388423 | K79: 0.5633781409 | L79: 14116461397 | M79: 66906207778 | N79: 0.1960584783
A80: 332010000000000 | B80: GASTOS DE COMERCIALIZACION | C80: 122590042000 | D80: 21463702174 | E80: 993308933 | F80: 123583350933 | H80: 123583350933 | I80: 193437094 | J80: 16533889194 | K80: 0.1337873514 | L80: 1227264825 | M80: 4383763378 | N80: 0.03547211938
A81: 332010100000000 | B81: COMPRA DE BIENES PARA LA VENTA | C81: 4000000000 | F81: 4000000000 | H81: 4000000000 | J81: 3999999580 | K81: 0.999999895
A82: 332010101000000 | B82: MEDIDORES | C82: 4000000000 | F82: 4000000000 | H82: 4000000000 | J82: 3999999580 | K82: 0.999999895
A83: 332010200000000 | B83: COMPRA DE SERVICIOS PARA LA VENTA | C83: 10638855000 | E83: 1030374263 | F83: 11669229263 | H83: 11669229263 | J83: 1009871731 | K83: 0.08654142517 | L83: 79188442 | M83: 348443722 | N83: 0.02986004595
A84: 332010201000000 | B84: GESTION COMERCIAL | C84: 10638855000 | E84: 402147559 | F84: 11041002559 | H84: 11041002559 | J84: 381645027 | K84: 0.03456615692 | L84: 79188442 | M84: 79188442 | N84: 0.007172214804
A85: 332010204000000 | B85: PROCESO DE ASEO | E85: 628226704 | F85: 628226704 | H85: 628226704 | J85: 628226704 | K85: 1 | M85: 269255280 | N85: 0.4285957255
A86: 332010500000000 | B86: OTROS GASTOS DE COMERCIALIZACION | C86: 107951187000 | D86: 21463702174 | E86: -37065330 | F86: 107914121670 | H86: 107914121670 | I86: 193437094 | J86: 11524017883 | K86: 0.1067887845 | L86: 1148076383 | M86: 4035319656 | N86: 0.03739380531
A87: 332010501000000 | B87: MANTENIMIENTO Y MATERIALES OPERACION INFRAESTRUCTURA | C87: 102301187000 | D87: 21099005000 | E87: -401762504 | F87: 101899424496 | H87: 101899424496 | I87: 193437094 | J87: 11524017883 | K87: 0.1130920802 | L87: 1148076383 | M87: 4035319656 | N87: 0.03960100536
A88: 332010502000000 | B88: COMERCIALIZACION DE ENERGIA | C88: 150000000 | F88: 150000000 | H88: 150000000
A89: 332010503000000 | B89: FONDO ATENCION EMERGENCIAS | C89: 4000000000 | D89: 364697174 | E89: 364697174 | F89: 4364697174 | H89: 4364697174
A90: 332010504000000 | B90: FONDO OBLIGACIONES CONTIGENTES | C90: 1500000000 | F90: 1500000000 | H90: 1500000000
A91: 332020000000000 | B91: GASTOS DE PRODUCCION | C91: 119951222000 | D91: 2300002000 | F91: 119951222000 | H91: 119951222000 | I91: 3572719425 | J91: 79221616675 | K91: 0.6604486003 | L91: 7802827219 | M91: 26443954015 | N91: 0.2204558951
A92: 332020100000000 | B92: INDUSTRIAL | C92: 119951222000 | D92: 2300002000 | F92: 119951222000 | H92: 119951222000 | I92: 3572719425 | J92: 79221616675 | K92: 0.6604486003 | L92: 7802827219 | M92: 26443954015 | N92: 0.2204558951
A93: 332020101000000 | B93: COMPRA AGUA EN BLOQUE | C93: 19933196000 | F93: 19933196000 | H93: 19933196000 | I93: 6835026 | J93: 6835026 | K93: 0.0003428966434
A94: 332020102000000 | B94: ENERGIA PARA BOMBEO | C94: 59707405000 | F94: 59707405000 | H94: 59707405000 | J94: 59707405000 | K94: 1 | L94: 4280787405 | M94: 17831218114 | N94: 0.2986433276
A95: 332020103000000 | B95: TASA POR USO DE AGUA | C95: 6740115000 | F95: 6740115000 | H95: 6740115000 | I95: 2328879399 | J95: 3087854681 | K95: 0.4581308599 | L95: 2328879399 | M95: 3087102786 | N95: 0.4580193047
A96: 332020109000000 | B96: PRODUCTOS QUIMICOS | C96: 33570506000 | D96: 2300002000 | F96: 33570506000 | H96: 33570506000 | I96: 1237005000 | J96: 16419521968 | K96: 0.4891055848 | L96: 1193160415 | M96: 5525633115 | N96: 0.1645978501
A97: 332030000000000 | B97: CUENTAS POR PAGAR | C97: 74951418000 | E97: 22770395241 | F97: 97721813241 | H97: 97721813241 | I97: -8339 | J97: 96500882554 | K97: 0.9875060578 | L97: 5086369353 | M97: 36078490385 | N97: 0.3691958754
A98: 332030000000000 | B98: CUENTAS POR PAGAR | C98: 74951418000 | E98: 22770395241 | F98: 97721813241 | H98: 97721813241 | I98: -8339 | J98: 96500882554 | K98: 0.9875060578 | L98: 5086369353 | M98: 36078490385 | N98: 0.3691958754
A99: 333000000000000 | B99: SERVICIO DE LA DEUDA | C99: 153572347000 | D99: 303368570 | E99: 303368570 | F99: 153875715570 | H99: 153875715570 | I99: -1829755673 | J99: 132088386785 | K99: 0.8584095697 | L99: 2368493000 | M99: 126730371215 | N99: 0.8235891592
A100: 333010000000000 | B100: DEUDA INTERNA | C100: 133333821000 | D100: -4297629430 | E100: -4300000000 | F100: 129033821000 | H100: 129033821000 | I100: -4198248673 | J100: 127167260215 | K100: 0.9855343291 | M100: 121811615215 | N100: 0.9440285831
A101: 333010100000000 | B101: AMORTIZACION | C101: 77404000000 | E101: 37028000000 | F101: 114432000000 | H101: 114432000000 | J101: 114430888888 | K101: 0.9999902902 | M101: 114430888888 | N101: 0.9999902902
A102: 333010200000000 | B102: INTERESES | C102: 55330821000 | D102: -4297629430 | E102: -41328000000 | F102: 14002821000 | H102: 14002821000 | I102: -4198248673 | J102: 12736371327 | K102: 0.9095575332 | M102: 7380726327 | N102: 0.5270885293
A103: 333010300000000 | B103: COMISIONES Y OTROS | C103: 599000000 | F103: 599000000 | H103: 599000000
A104: 333030000000000 | B104: BONOS PENSIONALES | C104: 3427370000 | D104: 4300000000 | E104: 4300000000 | F104: 7727370000 | H104: 7727370000 | I104: 2368493000 | J104: 4918756000 | K104: 0.6365368812 | L104: 2368493000 | M104: 4918756000 | N104: 0.6365368812
A105: 333030000000000 | B105: BONOS PENSIONALES | C105: 3427370000 | D105: 4300000000 | E105: 4300000000 | F105: 7727370000 | H105: 7727370000 | I105: 2368493000 | J105: 4918756000 | K105: 0.6365368812 | L105: 2368493000 | M105: 4918756000 | N105: 0.6365368812
A106: 333040000000000 | B106: CUENTAS POR PAGAR | E106: 2370570 | F106: 2370570 | H106: 2370570 | J106: 2370570 | K106: 1
A107: 333040000000000 | B107: CUENTAS POR PAGAR | E107: 2370570 | F107: 2370570 | H107: 2370570 | J107: 2370570 | K107: 1
A108: 333050000000000 | B108: PASIVOS CONTINGENTES | C108: 16811156000 | D108: 300998000 | E108: 300998000 | F108: 17112154000 | H108: 17112154000
A109: 333050000000000 | B109: PASIVOS CONTINGENTES | C109: 16811156000 | D109: 300998000 | E109: 300998000 | F109: 17112154000 | H109: 17112154000
A110: 334000000000000 | B110: INVERSION | C110: 3417897390000 | D110: 27815292738 | E110: 27815292738 | F110: 3445712682738 | H110: 3445712682738 | I110: 56375008281 | J110: 1299406951743 | K110: 0.3771083289 | L110: 48858696477 | M110: 197808060799 | N110: 0.05740700953
A111: 334010000000000 | B111: DIRECTA | C111: 1783511313000 | D111: 43135761507 | E111: 19285304700 | F111: 1802796617700 | H111: 1802796617700 | I111: 42990880995 | J111: 521331555886 | K111: 0.289179351 | L111: 1927077088 | M111: 17139430541 | N111: 0.009507134844
A112: 334011500000000 | B112: BOGOTA MEJOR PARA TODOS | C112: 1783511313000 | D112: 43135761507 | E112: 19285304700 | F112: 1802796617700 | H112: 1802796617700 | I112: 42990880995 | J112: 521331555886 | K112: 0.289179351 | L112: 1927077088 | M112: 17139430541 | N112: 0.009507134844
A113: 334011502000000 | B113: PILAR DEMOCRACIA URBANA | C113: 1590353907000 | D113: 37603524340 | E113: 16267916009 | F113: 1606621823009 | H113: 1606621823009 | I113: 36963198777 | J113: 475037783941 | K113: 0.2956749231 | L113: 955722348 | M113: 15621666043 | N113: 0.009723300044
A114: 334011502130000 | B114: INFRAESTRUCTURA PARA EL DESARROLLO DEL HABITAT | C114: 1590353907000 | D114: 37603524340 | E114: 16267916009 | F114: 1606621823009 | H114: 1606621823009 | I114: 36963198777 | J114: 475037783941 | K114: 0.2956749231 | L114: 955722348 | M114: 15621666043 | N114: 0.009723300044
A115: 334011502130133 | B115: INFRAESTRUCTURA PARA EL DESARROLLO DEL HABITAT | C115: 1590353907000 | D115: 37603524340 | E115: 16267916009 | F115: 1606621823009 | H115: 1606621823009 | I115: 36963198777 | J115: 475037783941 | K115: 0.2956749231 | L115: 955722348 | M115: 15621666043 | N115: 0.009723300044
A116: 334011502130133000019 | B116: 0019 - CONST.REDES LOCALES PARA EL SERVICIO ALCANTARILLADO P | C116: 46423998000 | D116: 233977619 | E116: 795026002 | F116: 47219024002 | H116: 47219024002 | I116: 428300831 | J116: 8626558517 | K116: 0.1826924359 | M116: 274851931 | N116: 0.005820788058
A117: 334011502130133000020 | B117: 0020 - CONST.REDES LOCALES SERVICIO DE ALCANTARILLADO SANITA | C117: 67831563000 | D117: 290004439 | E117: -8056190038 | F117: 59775372962 | H117: 59775372962 | I117: 361226956 | J117: 5020336008 | K117: 0.08398669484
A118: 334011502130133000021 | B118: 0021 - CONST.SISTEMA TRONCAL Y SECUNDARIO ALCANTARILLADO SAN | C118: 15776019000 | D118: -195557174 | E118: -5201828862 | F118: 10574190138 | H118: 10574190138 | J118: 3798784022 | K118: 0.3592505877
A119: 334011502130133000022 | B119: 0022 - CONST.SISTEMA TRONCAL Y SECUNDARIO DE ALCANTARILLADO | C119: 16877024000 | E119: 32522780353 | F119: 49399804353 | H119: 49399804353 | J119: 46094004875 | K119: 0.9330807172 | M119: 8602646383 | N119: 0.174143329
A120: 334011502130133000050 | B120: 0050 - RENOV,REHAB.O REPOS. SIST.ABAST. Y DISTRIB. MATRIZ AC | C120: 361732708000 | D120: 20849521415 | E120: -3213493476 | F120: 358519214524 | H120: 358519214524 | I120: 35317095 | J120: 6903700855 | K120: 0.01925615302 | L120: 5501538 | M120: 4003221444 | N120: 0.01116598855
A121: 334011502130133000051 | B121: 0051 - RENOV,REHAB.O REPOS.SIST.TRONCAL,SEC. Y LOCAL ALC.SA | C121: 150553278000 | D121: 1102778354 | E121: -20847497880 | F121: 129705780120 | H121: 129705780120 | I121: 355282274 | J121: 64872890304 | K121: 0.500154197 | L121: 22848715 | M121: 474252474 | N121: 0.003656371162
A122: 334011502130133000052 | B122: 0052 - RENOV,REHAB.O REPOS.SIST.TRONCAL, SEC. Y LOCAL ALC. P | C122: 97926991000 | D122: 3518857033 | E122: -491078287 | F122: 97435912713 | H122: 97435912713 | I122: 90208171 | J122: 57667609679 | K122: 0.5918516908 | L122: 626041437 | M122: 627263857 | N122: 0.006437706997
A123: 334011502130133000053 | B123: 0053 - RENOV,REHAB.O REPOS.SIST.TRONCAL, SEC. Y LOCAL ALC. C | C123: 28895578000 | D123: 3042835632 | E123: 1316529209 | F123: 30212107209 | H123: 30212107209 | J123: 15763742149 | K123: 0.5217690391
A124: 334011502130133000054 | B124: 0054 - ACCIONES PARA EL SANEAMIENTO DEL RIO BOGOTA | C124: 85540318000 | D124: -84 | E124: 7202371280 | F124: 92742689280 | H124: 92742689280 | J124: 82073233040 | K124: 0.8849563634
A125: 334011502130133000068 | B125: 0068 - CONST,RENOV,REHAB.O REPOS.REDES ASOC.A INFRAESTRUCTUR | C125: 75000000000 | D125: 195557174 | E125: 23220723538 | F125: 98220723538 | H125: 98220723538 | J125: 544302000 | K125: 0.005541620754 | L125: 19551068 | M125: 19551068 | N125: 0.000199052372
A126: 334011502130133000081 | B126: 0081 - CORREDORES AMBIENTALES | C126: 354634309000 | D126: 8337778048 | E126: 5421093901 | F126: 360055402901 | H126: 360055402901 | I126: 35645210541 | J126: 79307918394 | K126: 0.2202658751 | L126: 102669574 | M126: 509267673 | N126: 0.001414414751
A127: 334011502130133007334 | B127: 7334 - CONST.Y EXPANSION SISTEMA ABASTECIMIENTO Y MATRIZ AC | C127: 249020376000 | D127: 126570005 | E127: -519755774 | F127: 248500620226 | H127: 248500620226 | I127: 47652909 | J127: 99572022934 | K127: 0.4006912451 | L127: 179110016 | M127: 1110611213 | N127: 0.00446924926
A128: 334011502130133007338 | B128: 7338 - CONSTRUCCION DE REDES LOCALES PARA EL SERVICIO DE ACU | C128: 40141745000 | D128: 101201879 | E128: -15880763957 | F128: 24260981043 | H128: 24260981043 | J128: 4792681164 | K128: 0.1975468822
A129: 334011506000000 | B129: EJE TRANSV. SOSTENIB. AMBIENTAL BASADA EFICIENCIA ENERGETICA | C129: 94382111000 | D129: 8939986620 | E129: 9316687162 | F129: 103698798162 | H129: 103698798162 | I129: 5917068881 | J129: 43866444610 | K129: 0.4230178689 | L129: 971354740 | M129: 1337775636 | N129: 0.01290058959
A130: 334011506380000 | B130: RECUPERACION Y MANEJO ESTRUCTURA ECOLOGICA PRINCIPAL | C130: 8151000000 | D130: 85132586 | E130: 7832236671 | F130: 15983236671 | H130: 15983236671 | I130: 5900212636 | J130: 7043367153 | K130: 0.4406721428 | L130: 52245862 | M130: 80921371 | N130: 0.005062890118
A131: 334011506380177 | B131: CONSOLIDACION DE LA ESTRUCTURA ECOLOGICA PRINCIPAL | C131: 8151000000 | D131: 85132586 | E131: 7832236671 | F131: 15983236671 | H131: 15983236671 | I131: 5900212636 | J131: 7043367153 | K131: 0.4406721428 | L131: 52245862 | M131: 80921371 | N131: 0.005062890118
A132: 334011506380177007341 | B132: 7341 - ADEC.HIDRAULICA RECUP.AMB.HUMED,QUEBRADAS,RIOS CUENCA | C132: 8151000000 | D132: 85132586 | E132: 7832236671 | F132: 15983236671 | H132: 15983236671 | I132: 5900212636 | J132: 7043367153 | K132: 0.4406721428 | L132: 52245862 | M132: 80921371 | N132: 0.005062890118
A133: 334011506380177007341 | B133: ADECUACIÓN HIDRÁULICA Y RECUPERACIÓN AMBIENTAL DE HUMEDALES, | C133: 8151000000 | D133: 85132586 | E133: 7832236671 | F133: 15983236671 | H133: 15983236671 | I133: 5900212636 | J133: 7043367153 | K133: 0.4406721428 | L133: 52245862 | M133: 80921371 | N133: 0.005062890118
A134: 334011506390000 | B134: AMBIENTE SANO PARA LA EQUIDAD Y DISFRUTE DEL CIUDADANO | C134: 86231111000 | D134: 8854854034 | E134: 1484450491 | F134: 87715561491 | H134: 87715561491 | I134: 16856245 | J134: 36823077457 | K134: 0.4198009661 | L134: 919108878 | M134: 1256854265 | N134: 0.01432874901
A135: 334011506390179 | B135: AMBIENTE SANO | C135: 86231111000 | D135: 8854854034 | E135: 1484450491 | F135: 87715561491 | H135: 87715561491 | I135: 16856245 | J135: 36823077457 | K135: 0.4198009661 | L135: 919108878 | M135: 1256854265 | N135: 0.01432874901
A136: 334011506390179000082 | B136: 0082 - PLAN DE SANEAMIENTO Y MANEJO DE VERTIMIENTOS | C136: 86231111000 | D136: 8854854034 | E136: 1484450491 | F136: 87715561491 | H136: 87715561491 | I136: 16856245 | J136: 36823077457 | K136: 0.4198009661 | L136: 919108878 | M136: 1256854265 | N136: 0.01432874901
A137: 334011506390179000082 | B137: PLAN DE SANEAMIENTO Y MANEJO DE VERTIMIENTOS | C137: 86231111000 | D137: 8854854034 | E137: 1484450491 | F137: 87715561491 | H137: 87715561491 | I137: 16856245 | J137: 36823077457 | K137: 0.4198009661 | L137: 919108878 | M137: 1256854265 | N137: 0.01432874901
A138: 334011507000000 | B138: EJE TRANSVERSAL GOBIERNO LEGITIMO, FORT. LOCAL Y EFICIENTE | C138: 98775295000 | D138: -3407749453 | E138: -6299298471 | F138: 92475996529 | H138: 92475996529 | I138: 110613337 | J138: 2427327335 | K138: 0.02624818792 | M138: 179988862 | N138: 0.001946330602
A139: 334011507420000 | B139: TRANSPARENCIA, GESTION PUBLICA Y SERVICIO A LA CIUDADANIA | C139: 98775295000 | D139: -3407749453 | E139: -6299298471 | F139: 92475996529 | H139: 92475996529 | I139: 110613337 | J139: 2427327335 | K139: 0.02624818792 | M139: 179988862 | N139: 0.001946330602
A140: 334011507420185 | B140: FORTALECIMIENTO A LA GESTION PUBLICA EFECTIVA Y EFICIENTE | C140: 98775295000 | D140: -3407749453 | E140: -6299298471 | F140: 92475996529 | H140: 92475996529 | I140: 110613337 | J140: 2427327335 | K140: 0.02624818792 | M140: 179988862 | N140: 0.001946330602
A141: 334011507420185000055 | B141: 0055 - FORTALECIMIENTO ADMINISTRATIVO Y OPERATIVO EMPRESARIA | C141: 98775295000 | D141: -3407749453 | E141: -6299298471 | F141: 92475996529 | H141: 92475996529 | I141: 110613337 | J141: 2427327335 | K141: 0.02624818792 | M141: 179988862 | N141: 0.001946330602
A142: 334011507420185000055 | B142: FORTALECIMIENTO ADMINISTRATIVO Y OPERATIVO EMPRESARIAL | C142: 98775295000 | D142: -3407749453 | E142: -6299298471 | F142: 92475996529 | H142: 92475996529 | I142: 110613337 | J142: 2427327335 | K142: 0.02624818792 | M142: 179988862 | N142: 0.001946330602
A143: 334020000000000 | B143: TRANSFERENCIAS PARA INVERSION | C143: 872741045000 | D143: -2800503046 | E143: 11017085988 | F143: 883758130988 | H143: 883758130988 | I143: 14481849560 | J143: 19481849560 | K143: 0.02204432285 | L143: 14481849560 | M143: 19481849560 | N143: 0.02204432285
A144: 334020200000000 | B144: EMPRESAS DISTRITALES | C144: 872741045000 | D144: -2800503046 | E144: 11017085988 | F144: 883758130988 | H144: 883758130988 | I144: 14481849560 | J144: 19481849560 | K144: 0.02204432285 | L144: 14481849560 | M144: 19481849560 | N144: 0.02204432285
A145: 334030000000000 | B145: CUENTAS POR PAGAR | C145: 761645032000 | D145: -12519965723 | E145: -2487097950 | F145: 759157934050 | H145: 759157934050 | I145: -1097722274 | J145: 758593546297 | K145: 0.9992565608 | L145: 32449769829 | M145: 161186780698 | N145: 0.2123231194
A146: 334030000000000 | B146: CUENTAS POR PAGAR | C146: 761645032000 | D146: -12519965723 | E146: -2487097950 | F146: 759157934050 | H146: 759157934050 | I146: -1097722274 | J146: 758593546297 | K146: 0.9992565608 | L146: 32449769829 | M146: 161186780698 | N146: 0.2123231194
A147: 340000000000000 | B147: DISPONIBILIDAD FINAL | C147: 238551564000 | D147: 187868408437 | E147: 187868408437 | F147: 426419972437 | H147: 426419972437
A148: 340000000000000 | B148: DISPONIBILIDAD FINAL | C148: 238551564000 | D148: 187868408437 | E148: 187868408437 | F148: 426419972437 | H148: 426419972437
B154: OSCAR JAVIER MOLANO LOPEZ | F154: MAURICIO GOMEZ ARANGO
B155: Director Presupuesto( E ) | F155: Gerente Corporativo Financiero

Sheet Graph (hidden)
G1: FEP8Qry3
F2: Dir. SIE - BI Rev 2014.01
F5: Information
F6: Autor | G6: RAGARCIA | I6: Últ.actual.pantalla | J6: 02/07/2014 09:16:31
F7: Usuario actual | G7: AOCAMPOR | I7: Fe.clave | J7: 02/07/2014
F8: Modificado por | G8: RAGARCIA | I8: Hora de modificación | J8: 12/06/2014 15:20:31
F9: InfoSitio | G9: 0PU_C02 | I9: Actualidad de datos | J9: 02/07/2014 00:39:33
F10: Nombre técnico query | G10: ZPU_C02_Q4001 | I10: Actualidad de datos (fecha) | J10: 02/07/2014
F11: Descripción query | G11: EJECUCION PRESUPUESTAL DE GASTOS - SECRETARIA DE HACIENDA | I11: Actualidad de los datos (hora) | J11: 00:39:33
C14: Filter
C15: Cta Entidades PSM | D15: GASTOS, DISPONIBILIDAD FINAL
C16: Ratios

Sheet V_Futuras_2019-2021
A2: EMPRESA DE ACUEDUCTO ALCANTARILLADO DE BOGOTA | M2: EMPRESA DE ACUEDUCTO ALCANTARILLADO DE BOGOTA | Y2: EMPRESA DE ACUEDUCTO ALCANTARILLADO DE BOGOTA | AK2: EMPRESA DE ACUEDUCTO ALCANTARILLADO DE BOGOTA
A3: EJECUCION PRESUPUESTAL DE VIGENCIAS FUTURAS | M3: EJECUCION PRESUPUESTAL DE VIGENCIAS FUTURAS | Y3: EJECUCION PRESUPUESTAL DE VIGENCIAS FUTURAS | AK3: EJECUCION PRESUPUESTAL DE VIGENCIAS FUTURAS
A4: A 31 MAYO DE 2019 | M4: A 31 MAYO DE 2019 | Y4: A 31 MAYO DE 2019 | AK4: A 31 MAYO DE 2019
A6: 2020 | M6: 2021 | Q6: 2020 | Y6: 2022 | AK6: 2020-2022
A7: CODIGO SECRETARIA DE HACIENDA | B7: CONCEPTO | C7: PRESUPUESTO INICIAL | D7: MODIFICACIONES MES | E7: MODIFICACIONES ACUMULADAS | F7: PRESUPUESTO DEFINITIVO | G7: COMPROMISOS MES | H7: COMPROMISOS ACUMULADOS | I7: % EJEC PPTAL | J7: DISPONIBILIDADES MES | K7: DISPONIBILIDADES ACUMULADAS | L7: SALDO DISPONIBLE | M7: CODIGO SECRETARIA DE HACIENDA | N7: CONCEPTO | O7: PRESUPUESTO INICIAL | P7: MODIFICACIONES MES | Q7: MODIFICACIONES ACUMULADAS | R7: PRESUPUESTO DEFINITIVO | S7: COMPROMISOS MES | T7: COMPROMISOS ACUMULADOS | U7: % EJEC PPTAL | V7: DISPONIBILIDADES MES | W7: DISPONIBILIDADES ACUMULADAS | X7: SALDO DISPONIBLE | Y7: CODIGO SECRETARIA DE HACIENDA | Z7: CONCEPTO | AA7: PRESUPUESTO INICIAL | AB7: MODIFICACIONES MES | AC7: MODIFICACIONES ACUMULADAS | AD7: PRESUPUESTO DEFINITIVO | AE7: COMPROMISOS MES | AF7: COMPROMISOS ACUMULADOS | AG7: % EJEC PPTAL | AH7: DISPONIBILIDADES MES | AI7: DISPONIBILIDADES ACUMULADAS | AJ7: SALDO DISPONIBLE | AK7: CODIGO SECRETARIA DE HACIENDA | AL7: CONCEPTO | AM7: Presupuesto Inicial VF Total | AN7: Modificaciones mes VF Total | AO7: Modificaciones Acumuladas VF Total | AP7: Presupuesto Definitivo VF Total | AQ7: Compromisos mes Total | AR7: Compromisos Acumulados Total | AS7: % EJEC PPTAL | AT7: Disponibilidades mes Total | AU7: Disponibilidades Acumuladas Total | AV7: Saldo Disponible Total
A8: 3 | B8: TOTAL GASTOS | C8: =C9 -> 192730564846 | D8: =D9 -> 0 | E8: 384246379360 | F8: 576976944206 | G8: 76383164397 | H8: 269113729243 | I8: =H8/F8 -> 0.4664202477 | J8: -76383164397 | K8: 271436924648 | L8: 36426290315 | M8: 3 | N8: TOTAL GASTOS | O8: =O9 -> 65381426116 | P8: =P9 -> 0 | Q8: =Q9 -> 153513745666 | R8: =R9 -> 218895171782 | S8: =S9 -> 0 | T8: =T9 -> 65381426116 | U8: =T8/R8 -> 0.2986882972 | V8: =V9 -> 0 | W8: =W9 -> 143885630832 | X8: =X9 -> 9628114834 | Y8: 3 | Z8: TOTAL GASTOS | AA8: =AA9 -> 0 | AB8: 0 | AC8: 2122857502 | AD8: 2122857502 | AE8: 0 | AF8: 0 | AG8: 0 | AH8: =AH9 -> 0 | AI8: 2122857502 | AJ8: 0 | AK8: 3 | AL8: TOTAL GASTOS | AM8: =AM9 -> 258111990962 | AN8: =AN9 -> 0 | AO8: 539882982528 | AP8: 797994973490 | AQ8: 76383164397 | AR8: 334495155359 | AS8: =AR8/AP8 -> 0.4191695017 | AT8: =AT9 -> -76383164397 | AU8: =AU9 -> 417445412982 | AV8: =AV9 -> 46054405149
A9: 330000000000000 | B9: GASTOS | C9: 192730564846 | D9: 0 | E9: 384246379360 | F9: 576976944206 | G9: 76383164397 | H9: 269113729243 | I9: =H9/F9 -> 0.4664202477 | J9: -76383164397 | K9: 271436924648 | L9: 36426290315 | M9: 330000000000000 | N9: GASTOS | O9: 65381426116 | P9: 0 | Q9: 153513745666 | R9: 218895171782 | S9: 0 | T9: 65381426116 | U9: =T9/R9 -> 0.2986882972 | V9: 0 | W9: 143885630832 | X9: 9628114834 | Y9: 330000000000000 | Z9: GASTOS | AA9: 0 | AB9: 0 | AC9: 2122857502 | AD9: 2122857502 | AE9: 0 | AF9: 0 | AG9: 0 | AH9: 0 | AI9: 2122857502 | AJ9: 0 | AK9: 330000000000000 | AL9: GASTOS | AM9: 258111990962 | AN9: 0 | AO9: 539882982528 | AP9: 797994973490 | AQ9: 76383164397 | AR9: 334495155359 | AS9: =AR9/AP9 -> 0.4191695017 | AT9: -76383164397 | AU9: 417445412982 | AV9: 46054405149
A10: 334000000000000 | B10: INVERSION | C10: 192730564846 | D10: 0 | E10: 384246379360 | F10: 576976944206 | G10: 76383164397 | H10: 269113729243 | I10: 0.4664202477 | J10: -76383164397 | K10: 271436924648 | L10: 36426290315 | M10: 334000000000000 | N10: INVERSION | O10: 65381426116 | P10: 0 | Q10: 153513745666 | R10: 218895171782 | S10: 0 | T10: 65381426116 | U10: 0.2986882972 | V10: 0 | W10: 143885630832 | X10: 9628114834 | Y10: 334000000000000 | Z10: INVERSION | AA10: 0 | AB10: 0 | AC10: 2122857502 | AD10: 2122857502 | AE10: 0 | AF10: 0 | AG10: 0 | AH10: 0 | AI10: 2122857502 | AJ10: 0 | AK10: 334000000000000 | AL10: INVERSION | AM10: 258111990962 | AN10: 0 | AO10: 539882982528 | AP10: 797994973490 | AQ10: 76383164397 | AR10: 334495155359 | AS10: 0.4191695017 | AT10: -76383164397 | AU10: 417445412982 | AV10: 46054405149
A11: 334010000000000 | B11: DIRECTA | C11: 192730564846 | D11: 0 | E11: 384246379360 | F11: 576976944206 | G11: 76383164397 | H11: 269113729243 | I11: 0.4664202477 | J11: -76383164397 | K11: 271436924648 | L11: 36426290315 | M11: 334010000000000 | N11: DIRECTA | O11: 65381426116 | P11: 0 | Q11: 153513745666 | R11: 218895171782 | S11: 0 | T11: 65381426116 | U11: 0.2986882972 | V11: 0 | W11: 143885630832 | X11: 9628114834 | Y11: 334010000000000 | Z11: DIRECTA | AA11: 0 | AB11: 0 | AC11: 2122857502 | AD11: 2122857502 | AE11: 0 | AF11: 0 | AG11: 0 | AH11: 0 | AI11: 2122857502 | AJ11: 0 | AK11: 334010000000000 | AL11: DIRECTA | AM11: 258111990962 | AN11: 0 | AO11: 539882982528 | AP11: 797994973490 | AQ11: 76383164397 | AR11: 334495155359 | AS11: 0.4191695017 | AT11: -76383164397 | AU11: 417445412982 | AV11: 46054405149
A12: 334011500000000 | B12: BOGOTÁ MEJOR PARA TODOS | C12: 192730564846 | D12: 0 | E12: 384246379360 | F12: 576976944206 | G12: 76383164397 | H12: 269113729243 | I12: 0.4664202477 | J12: -76383164397 | K12: 271436924648 | L12: 36426290315 | M12: 334011500000000 | N12: BOGOTÁ MEJOR PARA TODOS | O12: 65381426116 | P12: 0 | Q12: 153513745666 | R12: 218895171782 | S12: 0 | T12: 65381426116 | U12: 0.2986882972 | V12: 0 | W12: 143885630832 | X12: 9628114834 | Y12: 334011500000000 | Z12: BOGOTÁ MEJOR PARA TODOS | AA12: 0 | AB12: 0 | AC12: 2122857502 | AD12: 2122857502 | AE12: 0 | AF12: 0 | AG12: 0 | AH12: 0 | AI12: 2122857502 | AJ12: 0 | AK12: 334011500000000 | AL12: BOGOTÁ MEJOR PARA TODOS | AM12: 258111990962 | AN12: 0 | AO12: 539882982528 | AP12: 797994973490 | AQ12: 76383164397 | AR12: 334495155359 | AS12: 0.4191695017 | AT12: -76383164397 | AU12: 417445412982 | AV12: 46054405149
A13: 334011502000000 | B13: PILAR DEMOCRACIA URBANA | C13: 192730564846 | D13: 0 | E13: 384246379360 | F13: 576976944206 | G13: 76383164397 | H13: 269113729243 | I13: 0.4664202477 | J13: -76383164397 | K13: 271436924648 | L13: 36426290315 | M13: 334011502000000 | N13: PILAR DEMOCRACIA URBANA | O13: 65381426116 | P13: 0 | Q13: 153513745666 | R13: 218895171782 | S13: 0 | T13: 65381426116 | U13: 0.2986882972 | V13: 0 | W13: 143885630832 | X13: 9628114834 | Y13: 334011502000000 | Z13: PILAR DEMOCRACIA URBANA | AA13: 0 | AB13: 0 | AC13: 2122857502 | AD13: 2122857502 | AE13: 0 | AF13: 0 | AG13: 0 | AH13: 0 | AI13: 2122857502 | AJ13: 0 | AK13: 334011502000000 | AL13: PILAR DEMOCRACIA URBANA | AM13: 258111990962 | AN13: 0 | AO13: 539882982528 | AP13: 797994973490 | AQ13: 76383164397 | AR13: 334495155359 | AS13: 0.4191695017 | AT13: -76383164397 | AU13: 417445412982 | AV13: 46054405149
A14: 334011502130000 | B14: INFRAESTRUCTURA PARA EL DESARROLLO DEL HÁBITAT. | C14: 192730564846 | D14: 0 | E14: 384246379360 | F14: 576976944206 | G14: 76383164397 | H14: 269113729243 | I14: 0.4664202477 | J14: -76383164397 | K14: 271436924648 | L14: 36426290315 | M14: 334011502130000 | N14: INFRAESTRUCTURA PARA EL DESARROLLO DEL HÁBITAT. | O14: 65381426116 | P14: 0 | Q14: 153513745666 | R14: 218895171782 | S14: 0 | T14: 65381426116 | U14: 0.2986882972 | V14: 0 | W14: 143885630832 | X14: 9628114834 | Y14: 334011502130000 | Z14: INFRAESTRUCTURA PARA EL DESARROLLO DEL HÁBITAT. | AA14: 0 | AB14: 0 | AC14: 2122857502 | AD14: 2122857502 | AE14: 0 | AF14: 0 | AG14: 0 | AH14: 0 | AI14: 2122857502 | AJ14: 0 | AK14: 334011502130000 | AL14: INFRAESTRUCTURA PARA EL DESARROLLO DEL HÁBITAT. | AM14: 258111990962 | AN14: 0 | AO14: 539882982528 | AP14: 797994973490 | AQ14: 76383164397 | AR14: 334495155359 | AS14: 0.4191695017 | AT14: -76383164397 | AU14: 417445412982 | AV14: 46054405149
A15: 334011502130133 | B15: INFRAESTRUCTURA PARA EL DESARROLLO DEL HÁBITAT. | C15: =SUM(C16:C23) -> 192730564846 | D15: =SUM(D16:D23) -> 0 | E15: 384246379360 | F15: 576976944206 | G15: 76383164397 | H15: 269113729243 | I15: 0.4664202477 | J15: -76383164397 | K15: 271436924648 | L15: 36426290315 | M15: 334011502130133 | N15: INFRAESTRUCTURA PARA EL DESARROLLO DEL HÁBITAT. | O15: =SUM(O16:O23) -> 65381426116 | P15: =SUM(P16:P23) -> 0 | Q15: =SUM(Q16:Q23) -> 153513745666 | R15: =SUM(R16:R23) -> 218895171782 | S15: =SUM(S16:S23) -> 0 | T15: =SUM(T16:T23) -> 65381426116 | U15: 0.2986882972 | V15: =SUM(V16:V23) -> 0 | W15: =SUM(W16:W23) -> 143885630832 | X15: =SUM(X16:X23) -> 9628114834 | Y15: 334011502130133 | Z15: INFRAESTRUCTURA PARA EL DESARROLLO DEL HÁBITAT. | AA15: =SUM(AA16:AA23) -> 0 | AB15: =SUM(AB16:AB23) -> 0 | AC15: 2122857502 | AD15: 2122857502 | AE15: 0 | AF15: 0 | AG15: 0 | AH15: =SUM(AH16:AH23) -> 0 | AI15: 2122857502 | AJ15: 0 | AK15: 334011502130133 | AL15: INFRAESTRUCTURA PARA EL DESARROLLO DEL HÁBITAT. | AM15: =SUM(AM16:AM23) -> 258111990962 | AN15: =SUM(AN16:AN23) -> 0 | AO15: 539882982528 | AP15: 797994973490 | AQ15: 76383164397 | AR15: 334495155359 | AS15: 0.4191695017 | AT15: =SUM(AT16:AT23) -> -76383164397 | AU15: =SUM(AU16:AU23) -> 417445412982 | AV15: =SUM(AV16:AV23) -> 46054405149
A16: 334011502130133000020 | B16: CONST. REDES LOCALES SERVICIO DE ALCANTARILLADO SANITARIO | C16: 0 | D16: 0 | E16: 15537880409 | F16: 15537880409 | G16: 0 | H16: 0 | I16: =H16/F16 -> 0 | J16: 0 | K16: 0 | L16: 15537880409 | M16: 334011502130133000020 | N16: CONST. REDES LOCALES SERVICIO DE ALCANTARILLADO SANITARIO | O16: 0 | P16: 0 | Q16: 0 | R16: 0 | S16: 0 | T16: 0 | U16: 0 | V16: 0 | W16: 0 | X16: =R16-T16-W16 -> 0 | Y16: 334011502130133000020 | Z16: CONST. REDES LOCALES SERVICIO DE ALCANTARILLADO SANITARIO | AA16: 0 | AB16: 0 | AC16: 0 | AD16: 0 | AE16: 0 | AF16: 0 | AG16: 0 | AH16: 0 | AI16: 0 | AJ16: =AD16-AF16-AI16 -> 0 | AK16: 334011502130133000020 | AL16: CONST. REDES LOCALES SERVICIO DE ALCANTARILLADO SANITARIO | AM16: 0 | AN16: 0 | AO16: 15537880409 | AP16: 15537880409 | AQ16: 0 | AR16: 0 | AS16: 0 | AT16: 0 | AU16: 0 | AV16: 15537880409
A17: 334011502130133000050 | B17: REN, REHAB O REP SIST ABAST, DIST MATRIZ Y RED LOCAL AC. | C17: 0 | D17: 0 | E17: 149683956996 | F17: 149683956996 | G17: 0 | H17: 0 | I17: =H17/F17 -> 0 | J17: 0 | K17: 149683956996 | L17: =F17-H17-K17 -> 0 | M17: 334011502130133000050 | N17: REN, REHAB O REP SIST ABAST, DIST MATRIZ Y RED LOCAL AC. | O17: 0 | P17: 0 | Q17: 125375021274 | R17: 125375021274 | S17: 0 | T17: 0 | U17: 0 | V17: 0 | W17: 125375021274 | X17: =R17-T17-W17 -> 0 | Y17: 334011502130133000050 | Z17: REN, REHAB O REP SIST ABAST, DIST MATRIZ Y RED LOCAL AC. | AA17: 0 | AB17: 0 | AC17: 2122857502 | AD17: 2122857502 | AE17: 0 | AF17: 0 | AG17: 0 | AH17: 0 | AI17: 2122857502 | AJ17: =AD17-AF17-AI17 -> 0 | AK17: 334011502130133000050 | AL17: REN, REHAB O REP SIST ABAST, DIST MATRIZ Y RED LOCAL AC. | AM17: 0 | AN17: 0 | AO17: 277181835772 | AP17: 277181835772 | AQ17: 0 | AR17: 0 | AS17: 0 | AT17: 0 | AU17: 277181835772 | AV17: =AP17-AR17-AU17 -> 0
A18: 334011502130133000051 | B18: REN, REHAB O REP SIST TRONCAL SECUNDARIO Y LOCAL ALC. SANITA | C18: 0 | D18: 0 | E18: 40720148701 | F18: 40720148701 | G18: 0 | H18: 0 | I18: 0 | J18: 0 | K18: 40720148701 | L18: 0 | M18: 334011502130133000051 | N18: REN, REHAB O REP SIST TRONCAL SECUNDARIO Y LOCAL ALC. SANITA | O18: 0 | P18: 0 | Q18: 16288059492 | R18: 16288059492 | S18: 0 | T18: 0 | U18: 0 | V18: 0 | W18: 16288059492 | X18: 0 | Y18: 334011502130133000051 | Z18: REN, REHAB O REP SIST TRONCAL SECUNDARIO Y LOCAL ALC. SANITA | AA18: 0 | AB18: 0 | AC18: 0 | AD18: 0 | AE18: 0 | AF18: 0 | AG18: 0 | AH18: 0 | AI18: 0 | AJ18: 0 | AK18: 334011502130133000051 | AL18: REN, REHAB O REP SIST TRONCAL SECUNDARIO Y LOCAL ALC. SANITA | AM18: 0 | AN18: 0 | AO18: 57008208193 | AP18: 57008208193 | AQ18: 0 | AR18: 0 | AS18: 0 | AT18: 0 | AU18: 57008208193 | AV18: 0
A19: 334011502130133000052 | B19: REN REHAB O REP SIST TRONCAL SECUNDARIO Y LOCAL ALC. PLUVIAL | C19: 0 | D19: 0 | E19: 5556375192 | F19: 5556375192 | G19: 0 | H19: 0 | I19: 0 | J19: 0 | K19: 5556375192 | L19: 0 | M19: 334011502130133000052 | N19: REN REHAB O REP SIST TRONCAL SECUNDARIO Y LOCAL ALC. PLUVIAL | O19: 0 | P19: 0 | Q19: 2222550066 | R19: 2222550066 | S19: 0 | T19: 0 | U19: 0 | V19: 0 | W19: 2222550066 | X19: 0 | Y19: 334011502130133000052 | Z19: REN REHAB O REP SIST TRONCAL SECUNDARIO Y LOCAL ALC. PLUVIAL | AA19: 0 | AB19: 0 | AC19: 0 | AD19: 0 | AE19: 0 | AF19: 0 | AG19: 0 | AH19: 0 | AI19: 0 | AJ19: 0 | AK19: 334011502130133000052 | AL19: REN REHAB O REP SIST TRONCAL SECUNDARIO Y LOCAL ALC. PLUVIAL | AM19: 0 | AN19: 0 | AO19: 7778925258 | AP19: 7778925258 | AQ19: 0 | AR19: 0 | AS19: 0 | AT19: 0 | AU19: 7778925258 | AV19: 0
A20: 334011502130133000053 | B20: REN, REHAB O REP SIST TRONCAL, SECUNDARIO Y LOCAL ALC. COMBI | C20: 1979233837 | D20: 0 | E20: 20888409906 | F20: 22867643743 | G20: 0 | H20: 1979233837 | I20: 0.08655171732 | J20: 0 | K20: 0 | L20: 20888409906 | M20: 334011502130133000053 | N20: REN, REHAB O REP SIST TRONCAL, SECUNDARIO Y LOCAL ALC. COMBI | O20: 0 | P20: 0 | Q20: 9628114834 | R20: 9628114834 | S20: 0 | T20: 0 | U20: 0 | V20: 0 | W20: 0 | X20: 9628114834 | Y20: 334011502130133000053 | Z20: REN, REHAB O REP SIST TRONCAL, SECUNDARIO Y LOCAL ALC. COMBI | AA20: 0 | AB20: 0 | AC20: 0 | AD20: 0 | AE20: 0 | AF20: 0 | AG20: 0 | AH20: 0 | AI20: 0 | AJ20: 0 | AK20: 334011502130133000053 | AL20: REN, REHAB O REP SIST TRONCAL, SECUNDARIO Y LOCAL ALC. COMBI | AM20: 1979233837 | AN20: 0 | AO20: 30516524740 | AP20: 32495758577 | AQ20: 0 | AR20: 1979233837 | AS20: 0.06090745142 | AT20: 0 | AU20: 0 | AV20: 30516524740
A21: 334011502130133000054 | B21: ACCIONES PARA EL SANEAMIENTO DEL RÍO BOGOTÁ | C21: 189945839941 | D21: 0 | E21: 0 | F21: 189945839941 | G21: 0 | H21: 189945839941 | I21: 1 | J21: 0 | K21: 0 | L21: 0 | M21: 334011502130133000054 | N21: ACCIONES PARA EL SANEAMIENTO DEL RÍO BOGOTÁ | O21: 65381426116 | P21: 0 | Q21: 0 | R21: 65381426116 | S21: 0 | T21: 65381426116 | U21: 1 | V21: 0 | W21: 0 | X21: 0 | Y21: 334011502130133000054 | Z21: ACCIONES PARA EL SANEAMIENTO DEL RÍO BOGOTÁ | AA21: 0 | AB21: 0 | AC21: 0 | AD21: 0 | AE21: 0 | AF21: 0 | AG21: 0 | AH21: 0 | AI21: 0 | AJ21: 0 | AK21: 334011502130133000054 | AL21: ACCIONES PARA EL SANEAMIENTO DEL RÍO BOGOTÁ | AM21: 255327266057 | AN21: 0 | AO21: 0 | AP21: 255327266057 | AQ21: 0 | AR21: 255327266057 | AS21: 1 | AT21: 0 | AU21: 0 | AV21: 0
A22: 334011502130133000081 | B22: CORREDORES AMBIENTALES | C22: 0 | D22: 0 | E22: 151859608156 | F22: 151859608156 | G22: 76383164397 | H22: 76383164397 | I22: 0.5029853911 | J22: -76383164397 | K22: 75476443759 | L22: 0 | M22: 334011502130133000081 | N22: CORREDORES AMBIENTALES | O22: 0 | P22: 0 | Q22: 0 | R22: 0 | S22: 0 | T22: 0 | U22: 0 | V22: 0 | W22: 0 | X22: 0 | Y22: 334011502130133000081 | Z22: CORREDORES AMBIENTALES | AA22: 0 | AB22: 0 | AC22: 0 | AD22: 0 | AE22: 0 | AF22: 0 | AG22: 0 | AH22: 0 | AI22: 0 | AJ22: 0 | AK22: 334011502130133000081 | AL22: CORREDORES AMBIENTALES | AM22: 0 | AN22: 0 | AO22: 151859608156 | AP22: 151859608156 | AQ22: 76383164397 | AR22: 76383164397 | AS22: 0.5029853911 | AT22: -76383164397 | AU22: 75476443759 | AV22: 0
A23: 334011502130133007338 | B23: CONSTRUCCIÓN DE REDES LOCALES PARA EL SERVICIO DE ACUEDUCTO | C23: 805491068 | D23: 0 | E23: 0 | F23: 805491068 | G23: 0 | H23: 805491068 | I23: 1 | J23: 0 | K23: 0 | L23: 0 | M23: 334011502130133007338 | N23: CONSTRUCCIÓN DE REDES LOCALES PARA EL SERVICIO DE ACUEDUCTO | O23: 0 | P23: 0 | Q23: 0 | R23: 0 | S23: 0 | T23: 0 | U23: 0 | V23: 0 | W23: 0 | X23: 0 | Y23: 334011502130133007338 | Z23: CONSTRUCCIÓN DE REDES LOCALES PARA EL SERVICIO DE ACUEDUCTO | AA23: 0 | AB23: 0 | AC23: 0 | AD23: 0 | AE23: 0 | AF23: 0 | AG23: 0 | AH23: 0 | AI23: 0 | AJ23: 0 | AK23: 334011502130133007338 | AL23: CONSTRUCCIÓN DE REDES LOCALES PARA EL SERVICIO DE ACUEDUCTO | AM23: 805491068 | AN23: 0 | AO23: 0 | AP23: 805491068 | AQ23: 0 | AR23: 805491068 | AS23: 1 | AT23: 0 | AU23: 0 | AV23: 0

Sheet Gastos P
A2: EMPRESA DE ACUEDUCTO ALCANTARILLADO DE BOGOTA
A3: EJECUCION PERSONERIA
A4: A 31 MAYO DE 2019
A5: CODIGO SECRETARIA DE HACIENDA | B5: RUBRO | C5: PRESUPUESTO INICIAL | D5: MODIFICACIONES MES | E5: MODIFICACIONES ACUMULADAS | F5: PRESUPUESTO DEFINITIVO | G5: SUSPENSION | H5: APROPIACION DISPONIBLE | I5: COMPROMISOS MES | J5: COMPROMISOS ACUMULADOS | K5: % EJEC PPTAL | L5: PAC ACUMULADO | M5: AUTORIZACIONES DE GIRO | O5: % EJEC AUT. GIRO | P5: % EJEC GIROS PAC
M6: MES | N6: ACUMULADO
A7: TOTAL GASTOS + DISPONIBILIDAD FINAL | C7: 5419077626000 | D7: 306843335701 | E7: 306843335701 | F7: 5725920961701 | H7: 5725920961701 | I7: 151730354320 | J7: 2357695713884 | K7: 0.4117583407 | L7: 1512237572708 | M7: 165256356873 | N7: 847190648005 | O7: 0.1479570978 | P7: 0.5602232502
A8: 330000000000000 | B8: GASTOS | C8: 5180526062000 | D8: 118974927264 | E8: 118974927264 | F8: 5299500989264 | H8: 5299500989264 | I8: 151730354320 | J8: 2357695713884 | K8: 0.4448901356 | L8: 1512237572708 | M8: 165256356873 | N8: 847190648005 | O8: 0.1598623436 | P8: 0.5602232502
A9: 331000000000000 | B9: GASTOS DE FUNCIONAMIENTO | C9: 1291563643000 | D9: 67092561782 | E9: 67092561782 | F9: 1358656204782 | H9: 1358656204782 | I9: 93418953532 | J9: 733943986933 | K9: 0.5401984581 | L9: 719252019440 | M9: 99912705999 | N9: 455746008213 | O9: 0.3354388009 | P9: 0.6336388302
A10: 331010000000000 | B10: SERVICIOS PERSONALES | C10: 358789399000 | D10: 142791249 | E10: 2882444384 | F10: 361671843384 | H10: 361671843384 | I10: 26696613547 | J10: 149225434295 | K10: 0.4125989817 | L10: 178904190650 | M10: 21739407532 | N10: 109479787226 | O10: 0.3027047563 | P10: 0.611946466
A11: 331010100000000 | B11: SERVICIOS PERSONALES ASOCIADOS A LA NOMINA | C11: 225857398000 | D11: 0 | E11: 299078879 | F11: 226156476879 | H11: 226156476879 | I11: 14661580064 | J11: 75127694475 | K11: 0.3321934243 | L11: 120466637983 | M11: 14614791510 | N11: 75080722973 | O11: 0.3319857296 | P11: 0.6232490939
A12: 331010101000000 | B12: SUELDOS PERSONAL DE NOMINA | C12: 126490927000 | D12: 0 | E12: 145583526 | F12: 126636510526 | H12: 126636510526 | I12: 10086181491 | J12: 49406507983 | K12: 0.3901442623 | L12: 63230999283 | M12: 10086181491 | N12: 49406507983 | O12: 0.3901442623 | P12: 0.7813652883
A13: 331010102000000 | B13: GASTOS DE REPRESENTACION | C13: 75042000 | F13: 75042000 | H13: 75042000 | L13: 37521000
A14: 331010103000000 | B14: HORAS EXTRAS, DOMINICALES, FESTIVOS, RECARGO NOCTURNO | C14: 16278640000 | F14: 16278640000 | H14: 16278640000 | I14: 1612958692 | J14: 7747409778 | K14: 0.4759248794 | L14: 8934038267 | M14: 1612958692 | N14: 7747409778 | O14: 0.4759248794 | P14: 0.8671789337
A15: 331010104000000 | B15: SUBSIDIO DE TRANSPORTE | C15: 1968514000 | F15: 1968514000 | H15: 1968514000 | I15: 99958562 | J15: 532007149 | K15: 0.2702582501 | L15: 984256765 | M15: 99958562 | N15: 532007149 | O15: 0.2702582501 | P15: 0.5405166293
A16: 331010105000000 | B16: SUBSIDIO DE ALIMENTACION | C16: 9532780000 | F16: 9532780000 | H16: 9532780000 | I16: 678360490 | J16: 3795825466 | K16: 0.398186622 | L16: 4866389672 | M16: 678360490 | N16: 3795825466 | O16: 0.398186622 | P16: 0.7800085324
A17: 331010106000000 | B17: BONIFICACION POR SERVICIOS PRESTADOS | C17: 437010000 | F17: 437010000 | H17: 437010000 | I17: 15445546 | J17: 76889123 | K17: 0.1759436237 | L17: 219243841 | M17: 15445546 | N17: 76889123 | O17: 0.1759436237 | P17: 0.3507014047
A18: 331010107000000 | B18: PRIMA SEMESTRAL | C18: 15809419000 | D18: 0 | E18: 46745094 | F18: 15856164094 | H18: 15856164094 | I18: 46404275 | J18: 128145108 | K18: 0.008081721862 | L18: 15630687761 | M18: 46404275 | N18: 128145108 | O18: 0.008081721862 | P18: 0.008198302593
A19: 331010109000000 | B19: PRIMA DE NAVIDAD | C19: 16154480000 | D19: 0 | E19: 23524325 | F19: 16178004325 | H19: 16178004325 | I19: 30165718 | J19: 71189045 | K19: 0.004400360117 | L19: 5387736386 | M19: 30165718 | N19: 71189045 | O19: 0.004400360117 | P19: 0.0132131641
A20: 331010110000000 | B20: PRIMA DE VACACIONES | C20: 17654651000 | D20: 0 | E20: 15176975 | F20: 17669827975 | H20: 17669827975 | I20: 981670212 | J20: 4564728173 | K20: 0.2583346131 | L20: 8504595390 | M20: 981670212 | N20: 4564728173 | O20: 0.2583346131 | P20: 0.5367366657
A21: 331010111000000 | B21: PRIMA TECNICA | C21: 4209393000 | D21: 0 | E21: 68048959 | F21: 4277441959 | H21: 4277441959 | I21: 312001867 | J21: 1571042298 | K21: 0.3672854741 | L21: 2111883829 | M21: 312001867 | N21: 1571042298 | O21: 0.3672854741 | P21: 0.7439056431
A22: 331010112000000 | B22: OTRAS PRIMAS Y BONIFICACIONES | C22: 10407642000 | F22: 10407642000 | H22: 10407642000 | I22: 331879514 | J22: 4420130760 | K22: 0.4247004999 | L22: 6335014031 | M22: 327738934 | N22: 4415807232 | O22: 0.4242850813 | P22: 0.697047743
A23: 331010114000000 | B23: QUINQUENIO | C23: 6155108000 | F23: 6155108000 | H23: 6155108000 | I23: 423905723 | J23: 2446343117 | K23: 0.3974492595 | L23: 3590479760 | M23: 423905723 | N23: 2446343117 | O23: 0.3974492595 | P23: 0.6813415701
A24: 331010115000000 | B24: INDEMNIZACIONES LABORALES | C24: 100000000 | F24: 100000000 | H24: 100000000 | L24: 49999998
A25: 331010116000000 | B25: CONVENCIONES COLECTIVAS O CONVENIOS | C25: 583792000 | F25: 583792000 | H25: 583792000 | I25: 42647974 | J25: 367476475 | K25: 0.6294647323 | L25: 583792000 | N25: 324828501 | O25: 0.5564113606 | P25: 0.5564113606
A26: 331010200000000 | B26: SERVICIOS PERSONALES INDIRECTOS | C26: 67383543000 | D26: 142791249 | E26: 2583365505 | F26: 69966908505 | H26: 69966908505 | I26: 7642032588 | J26: 45033243750 | K26: 0.6436363234 | L26: 21337376506 | M26: 2802784496 | N26: 9505368695 | O26: 0.135855205 | P26: 0.4454797286
A27: 331010203000000 | B27: HONORARIOS EMPRESA | C27: 54909345000 | D27: 142791249 | E27: 2583365505 | F27: 57492710505 | H27: 57492710505 | I27: 7180215303 | J27: 42760360517 | K27: 0.7437527322 | L27: 18718058567 | M27: 2418635711 | N27: 7883951146 | O27: 0.1371295783 | P27: 0.4211949181
A28: 331010204000000 | B28: REMUNERACION SERVICIOS TECNICOS | C28: 1568517000 | F28: 1568517000 | H28: 1568517000 | I28: 152248971 | J28: 788477471 | K28: 0.5026897834 | L28: 410619446 | M28: 74580471 | N28: 137011787 | O28: 0.08735116483 | P28: 0.3336709655
A29: 331010299000000 | B29: OTROS GASTOS DE PERSONAL | C29: 10905681000 | F29: 10905681000 | H29: 10905681000 | I29: 309568314 | J29: 1484405762 | K29: 0.1361130737 | L29: 2208698493 | M29: 309568314 | N29: 1484405762 | O29: 0.1361130737 | P29: 0.6720726105
A30: 331010300000000 | B30: APORTES PATRONALES AL SECTOR PRIVADO Y PUBLICO | C30: 65548458000 | D30: 0 | E30: 0 | F30: 65548458000 | H30: 65548458000 | I30: 4393000895 | J30: 29064496070 | K30: 0.4434047262 | L30: 37100176161 | M30: 4321831526 | N30: 24893695558 | O30: 0.3797754565 | P30: 0.6709859126
A31: 331010301000000 | B31: APORTES PATRONALES AL SECTOR PRIVADO | C31: 58397668000 | D31: 0 | E31: -14458186868 | F31: 43939481132 | H31: 43939481132 | I31: 3046950862 | J31: 20221678671 | K31: 0.4602166013 | L31: 23848622112 | M31: 3026380917 | N31: 17284438902 | O31: 0.3933692082 | P31: 0.7247562908
A32: 331010301010000 | B32: CESANTÍAS FONDOS PRIVADOS | C32: 7625219000 | D32: 0 | E32: -2380000000 | F32: 5245219000 | H32: 5245219000 | J32: 5082890907 | K32: 0.9690521801 | L32: 5245219000 | N32: 5082890907 | O32: 0.9690521801 | P32: 0.9690521801
A33: 331010301020000 | B33: PENSIONES FONDOS PRIVADOS | C33: 21171531000 | D33: 0 | E33: -11478186868 | F33: 9693344132 | H33: 9693344132 | I33: 649002831 | J33: 3254716872 | K33: 0.3357682166 | L33: 4401645987 | M33: 651620015 | N33: 2608573107 | O33: 0.2691097181 | P33: 0.5926358264
A34: 331010301030000 | B34: SALUD EPS PRIVADAS | C34: 20828865000 | D34: 0 | E34: -600000000 | F34: 20228865000 | H34: 20228865000 | I34: 1864458131 | J34: 9249440192 | K34: 0.4572397014 | L34: 9814572863 | M34: 1842422002 | N34: 7507854588 | O34: 0.3711456173 | P34: 0.76497008
A35: 331010301050000 | B35: CAJA DE COMPENSACION | C35: 8772053000 | F35: 8772053000 | H35: 8772053000 | I35: 533489900 | J35: 2634630700 | K35: 0.3003436824 | L35: 4387184262 | M35: 532338900 | N35: 2085120300 | O35: 0.2377003764 | P35: 0.4752752963
A36: 331010302000000 | B36: APORTES PATRONALES AL SECTOR PUBLICO | C36: 7150790000 | D36: 0 | E36: 14458186868 | F36: 21608976868 | H36: 21608976868 | I36: 1346050033 | J36: 8842817399 | K36: 0.4092196245 | L36: 13251554049 | M36: 1295450609 | N36: 7609256656 | O36: 0.3521340553 | P36: 0.5742161733
A37: 331010302010000 | B37: CESANTIAS FONDOS PÚBLICOS | D37: 0 | E37: 2380000000 | F37: 2380000000 | H37: 2380000000 | J37: 2285717049 | K37: 0.9603853147 | L37: 2380000000 | N37: 2285717049 | O37: 0.9603853147 | P37: 0.9603853147
A38: 331010302020000 | B38: PENSIONES FONDOS PÚBLICOS | D38: 0 | E38: 11478186868 | F38: 11478186868 | H38: 11478186868 | I38: 961713525 | J38: 4716173828 | K38: 0.4108814295 | L38: 6645179794 | M38: 944138636 | N38: 3873944379 | O38: 0.3375049059 | P38: 0.5829705891
A39: 331010302030000 | B39: SALUD EPS PUBLICOS | D39: 0 | E39: 600000000 | F39: 600000000 | H39: 600000000 | I39: 21173608 | J39: 119656022 | K39: 0.1994267033 | L39: 600000000 | M39: 20798573 | N39: 98237128 | O39: 0.1637285467 | P39: 0.1637285467
A40: 331010302040000 | B40: RIESGOS PROFESIONALES SECTOR PUBLICO | C40: 2124180000 | F40: 2124180000 | H40: 2124180000 | I40: 199942700 | J40: 970372900 | K40: 0.4568223503 | L40: 1112422646 | M40: 197030200 | N40: 766598100 | O40: 0.3608913086 | P40: 0.6891248598
A41: 331010302050000 | B41: ICBF | C41: 3036439000 | F41: 3036439000 | H41: 3036439000 | I41: 98025700 | J41: 450531800 | K41: 0.1483750538 | L41: 1518610206 | M41: 80088300 | N41: 350850300 | O41: 0.1155466321 | P41: 0.2310338088
A42: 331010302060000 | B42: SENA | C42: 1990171000 | F42: 1990171000 | H42: 1990171000 | I42: 65194500 | J42: 300365800 | K42: 0.150924619 | L42: 995341403 | M42: 53394900 | N42: 233909700 | O42: 0.1175324633 | P42: 0.2350044912
A43: 331020000000000 | B43: GASTOS GENERALES | C43: 500514708000 | D43: 62366659612 | E43: 513633803 | F43: 501028341803 | H43: 501028341803 | I43: 53787439114 | J43: 259247769277 | K43: 0.517431346 | L43: 268725429523 | M43: 44485704361 | N43: 159909503946 | O43: 0.3191625914 | P43: 0.5950665117
A44: 331020100000000 | B44: ADQUISICION DE BIENES | C44: 48492183000 | D44: 17488687 | E44: 1706870260 | F44: 50199053260 | H44: 50199053260 | I44: 1368832243 | J44: 22238121798 | K44: 0.4429988287 | L44: 21112858828 | M44: 629275893 | N44: 9686810474 | O44: 0.1929679913 | P44: 0.4588109338
A45: 331020101000000 | B45: DOTACION | C45: 3286323000 | D45: 12891506 | E45: 12989870 | F45: 3299312870 | H45: 3299312870 | I45: 202644004 | J45: 903168467 | K45: 0.2737444136 | L45: 825745436 | N45: 12749998 | O45: 0.003864440416 | P45: 0.01544059155
A46: 331020102000000 | B46: MATERIALES Y SUMINISTROS | C46: 11871646000 | D46: 3682427 | E46: 798348283 | F46: 12669994283 | H46: 12669994283 | I46: 1164849619 | J46: 4498296514 | K46: 0.355035402 | L46: 2975849769 | M46: 324037820 | N46: 471497496 | O46: 0.03721371024 | P46: 0.1584412966
A47: 331020103000000 | B47: GASTOS DE COMPUTADOR | C47: 29306737000 | D47: 0 | E47: 889381573 | F47: 30196118573 | H47: 30196118573 | I47: 0 | J47: 13227919313 | K47: 0.4380668754 | L47: 15823324918 | M47: 254623147 | N47: 9125855853 | O47: 0.3022194999 | P47: 0.5767344032
A48: 331020104000000 | B48: COMBUSTIBLES, LUBRICANTES Y LLANTAS | C48: 4027477000 | D48: 914754 | E48: 6150534 | F48: 4033627534 | H48: 4033627534 | I48: 1338620 | J48: 3608737504 | K48: 0.894663048 | L48: 1487938705 | M48: 50614926 | N48: 76707127 | O48: 0.01901690881 | P48: 0.05155261218
A49: 331020200000000 | B49: ADQUISICION DE SERVICIOS | C49: 168488698000 | D49: -714913636 | E49: -2695249434 | F49: 165793448566 | H49: 165793448566 | I49: 12326131106 | J49: 98161300268 | K49: 0.5920698382 | L49: 59982186717 | M49: 5165679405 | N49: 22898652165 | O49: 0.1381155429 | P49: 0.381757542
A50: 331020201000000 | B50: VIATICOS Y GASTOS DE VIAJE | C50: 1178098000 | F50: 1178098000 | H50: 1178098000 | I50: 67362537 | J50: 278291721 | K50: 0.2362211981 | L50: 589048524 | M50: 67919740 | N50: 174008588 | O50: 0.1477029823 | P50: 0.2954062032
A51: 331020202000000 | B51: GASTOS DE TRANSPORTE Y COMUNICACIÓN | C51: 15506533000 | D51: 0 | E51: 174500000 | F51: 15681033000 | H51: 15681033000 | I51: 409507459 | J51: 11248103207 | K51: 0.7173062646 | L51: 4267037148 | M51: 890503514 | N51: 2421876077 | O51: 0.1544462075 | P51: 0.5675779219
A52: 331020203000000 | B52: IMPRESOS Y PUBLICACIONES | C52: 824609000 | D52: -190000000 | E52: -84305580 | F52: 740303420 | H52: 740303420 | I52: 111832059 | J52: 124908707 | K52: 0.1687263676 | L52: 180929956 | M52: 3055808 | N52: 16132456 | O52: 0.02179168104 | P52: 0.08916409619
A53: 331020204000000 | B53: MANTENIMIENTO Y REPARACIONES | C53: 82189005000 | D53: -601773061 | E53: -2894430061 | F53: 79294574939 | H53: 79294574939 | I53: 10928658789 | J53: 46287224145 | K53: 0.5837375909 | L53: 26896626021 | M53: 2551932506 | N53: 3931348427 | O53: 0.049579034 | P53: 0.1461651147
A54: 331020205000000 | B54: ARRENDAMIENTOS | C54: 12050191000 | D54: 0 | E54: -124000000 | F54: 11926191000 | H54: 11926191000 | I54: 13842012 | J54: 10064569208 | K54: 0.8439047478 | L54: 2698734371 | M54: 1056045526 | N54: 1465296548 | O54: 0.1228637499 | P54: 0.5429569371
A55: 331020206000000 | B55: SEGUROS | C55: 29125848000 | D55: 0 | E55: 0 | F55: 29125848000 | H55: 29125848000 | I55: 1336842 | J55: 19760696746 | K55: 0.6784591043 | L55: 19223909481 | N55: 13246437601 | O55: 0.4548000663 | P55: 0.689060548
A56: 331020207000000 | B56: SUMINISTRO DE ALIMENTOS | C56: 4903521000 | F56: 4903521000 | H56: 4903521000 | J56: 395000000 | K56: 0.08055436084 | L56: 400000000
A57: 331020208000000 | B57: SERVICIOS PUBLICOS | C57: 5865650000 | D57: 0 | E57: 0 | F57: 5865650000 | H57: 5865650000 | I57: 140257232 | J57: 4838982071 | K57: 0.8249694528 | L57: 2182537365 | M57: 502995000 | N57: 1372140610 | O57: 0.2339281427 | P57: 0.6286905471
A58: 331020209000000 | B58: CAPACITACION | C58: 900000000 | D58: 0 | E58: -3124968 | F58: 896875032 | H58: 896875032 | I58: 44602898 | J58: 105201528 | K58: 0.1172978668 | L58: 382056422 | M58: 2975000 | N58: 18798430 | O58: 0.0209599212 | P58: 0.04920328234
A59: 331020210000000 | B59: BIENESTAR E INCENTIVOS | C59: 4693616000 | D59: 153722082 | E59: 153722082 | F59: 4847338082 | H59: 4847338082 | L59: 690000000
A60: 331020211000000 | B60: PROMOCION INSTITUCIONAL | C60: 6731186000 | D60: -171398000 | E60: -12146250 | F60: 6719039750 | H60: 6719039750 | I60: 27229600 | J60: 1643395800 | K60: 0.2445878967 | L60: 1899588497 | M60: 42867020 | N60: 71210889 | O60: 0.01059837293 | P60: 0.03748753433
A61: 331020212000000 | B61: INTERESES Y COMISIONES | C61: 3011310000 | D61: 0 | E61: 0 | F61: 3011310000 | H61: 3011310000 | I61: 430000000 | J61: 2723789171 | K61: 0.9045196845 | L61: 245400000 | M61: 523406 | N61: 7877731 | O61: 0.002616047833 | P61: 0.03210159332
A62: 331020213000000 | B62: SALUD OCUPACIONAL | C62: 1367131000 | D62: 94535343 | E62: 94535343 | F62: 1461666343 | H62: 1461666343 | I62: 151501678 | J62: 619466964 | K62: 0.4238087351 | L62: 253976932 | M62: 46861885 | N62: 101853808 | O62: 0.06968335044 | P62: 0.4010356657
A63: 331020214000000 | B63: PROGRAMAS Y CONVENIOS INSTITUCIONES | C63: 142000000 | F63: 142000000 | H63: 142000000 | J63: 71671000 | K63: 0.5047253521 | L63: 72342000 | N63: 71671000 | O63: 0.5047253521 | P63: 0.9907246136
A64: 331020300000000 | B64: OTROS GASTOS GENERALES | C64: 283533827000 | D64: 63064084561 | E64: 1502012977 | F64: 285035839977 | H64: 285035839977 | I64: 40092475765 | J64: 138848347211 | K64: 0.487125925 | L64: 187630383978 | M64: 38690749063 | N64: 127324041307 | O64: 0.4466948483 | P64: 0.6785896751
A65: 331020301000000 | B65: IMPUESTOS, TASAS Y MULTAS | C65: 266871794000 | D65: 57071142926 | E65: -4209897006 | F65: 262661896994 | H65: 262661896994 | I65: 38119784396 | J65: 133875303583 | K65: 0.5096868069 | L65: 184517216897 | M65: 38675939412 | N65: 126889932837 | O65: 0.483092273 | P65: 0.687686141
A66: 331020302000000 | B66: SENTENCIAS JUDICIALES | C66: 750000000 | F66: 750000000 | H66: 750000000 | I66: 3850000 | J66: 17724014 | K66: 0.02363201867 | L66: 375000000 | M66: 3850000 | N66: 17724014 | O66: 0.02363201867 | P66: 0.04726403733
A67: 331020399000000 | B67: OTROS GASTOS GENERALES | C67: 15912033000 | D67: 5992941635 | E67: 5711909983 | F67: 21623942983 | H67: 21623942983 | I67: 1968841369 | J67: 4955319614 | K67: 0.229158929 | L67: 2738167081 | M67: 10959651 | N67: 416384456 | O67: 0.01925571374 | P67: 0.1520668548
A68: 331030000000000 | B68: TRANSFERENCIAS CORRIENTES | C68: 312085533000 | D68: 4877506774 | E68: 4578427895 | F68: 316663960895 | H68: 316663960895 | I68: 23591015395 | J68: 157741523950 | K68: 0.4981353846 | L68: 126999536924 | M68: 14178276175 | N68: 87461344713 | O68: 0.2761960801 | P68: 0.6886745167
A69: 331030300000000 | B69: TRANSFERENCIAS DE PREVISION Y SEGURIDAD SOCIAL | C69: 311435532000 | D69: 4647156177 | E69: 4348077298 | F69: 315783609298 | H69: 315783609298 | I69: 23583827065 | J69: 157590237274 | K69: 0.4990450189 | L69: 126674536922 | M69: 14171087845 | N69: 87310058037 | O69: 0.276486985 | P69: 0.6892471065
A70: 331030301000000 | B70: PENSIONES Y JUBILACIONES | C70: 199914405000 | D70: 0 | E70: -299078879 | F70: 199615326121 | H70: 199615326121 | I70: 13928593092 | J70: 68265498135 | K70: 0.3419852546 | L70: 96173013377 | M70: 13577461988 | N70: 67887967031 | O70: 0.3400939615 | P70: 0.7058941448
A71: 331030302000000 | B71: CESANTIAS | C71: 17646342000 | F71: 17646342000 | H71: 17646342000 | I71: 466962057 | J71: 3266476869 | K71: 0.185107875 | L71: 9100309707 | M71: 466962057 | N71: 3266476869 | O71: 0.185107875 | P71: 0.358941286
A72: 331030303000000 | B72: OTRAS TRANSFERENCIAS DE PREVISION SOCIAL | C72: 93874785000 | D72: 4647156177 | E72: 4647156177 | F72: 98521941177 | H72: 98521941177 | I72: 9188271916 | J72: 86058262270 | K72: 0.8734933685 | L72: 21401213838 | M72: 126663800 | N72: 16155614137 | O72: 0.1639798602 | P72: 0.7548924215
A73: 331030303010000 | B73: FONDO DE VIVIENDA | C73: 29566811000 | D73: 4647156177 | E73: 4647156177 | F73: 34213967177 | H73: 34213967177 | I73: 8569572116 | J73: 22569572116 | K73: 0.6596596062 | L73: 14400000000 | N73: 14000000000 | O73: 0.4091896133 | P73: 0.9722222222
A74: 331030303020000 | B74: PAGOS SERVICIOS MEDICOS CONVENCIONALES | C74: 64307974000 | D74: 0 | E74: 0 | F74: 64307974000 | H74: 64307974000 | I74: 618699800 | J74: 63488690154 | K74: 0.987259996 | L74: 7001213838 | M74: 126663800 | N74: 2155614137 | O74: 0.0335201687 | P74: 0.3078914867
A75: 331030400000000 | B75: OTRAS TRANSFERENCIAS | C75: 650001000 | D75: 230350597 | E75: 230350597 | F75: 880351597 | H75: 880351597 | I75: 7188330 | J75: 151286676 | K75: 0.1718480168 | L75: 325000002 | M75: 7188330 | N75: 151286676 | O75: 0.1718480168 | P75: 0.4654974618
A76: 331030401000000 | B76: DESTINATARIOS DE OTRAS TRANSFERENCIAS | C76: 650001000 | D76: 230350597 | E76: 230350597 | F76: 880351597 | H76: 880351597 | I76: 7188330 | J76: 151286676 | K76: 0.1718480168 | L76: 325000002 | M76: 7188330 | N76: 151286676 | O76: 0.1718480168 | P76: 0.4654974618
A77: 331040000000000 | B77: CUENTAS POR PAGAR | C77: 120174003000 | D77: -294395853 | E77: 59118055700 | F77: 179292058700 | H77: 179292058700 | I77: -10656114524 | J77: 167729259411 | K77: 0.935508581 | L77: 144622862343 | M77: 19509317931 | N77: 98895372328 | O77: 0.5515881353 | P77: 0.6838156203
A78: 331040000000000 | B78: CUENTAS POR PAGAR | C78: 120174003000 | D78: -294395853 | E78: 59118055700 | F78: 179292058700 | H78: 179292058700 | I78: -10656114524 | J78: 167729259411 | K78: 0.935508581 | L78: 144622862343 | M78: 19509317931 | N78: 98895372328 | O78: 0.5515881353 | P78: 0.6838156203
A79: 332000000000000 | B79: GASTOS DE OPERACION | C79: 317492682000 | D79: 23763704174 | E79: 23763704174 | F79: 341256386174 | H79: 341256386174 | I79: 3766148180 | J79: 192256388423 | K79: 0.5633781409 | L79: 138387146970 | M79: 14116461397 | N79: 66906207778 | O79: 0.1960584783 | P79: 0.4834712561
A80: 332010000000000 | B80: GASTOS DE COMERCIALIZACION | C80: 122590042000 | D80: 21463702174 | E80: 993308933 | F80: 123583350933 | H80: 123583350933 | I80: 193437094 | J80: 16533889194 | K80: 0.1337873514 | L80: 14144058014 | M80: 1227264825 | N80: 4383763378 | O80: 0.03547211938 | P80: 0.3099367504
A81: 332010100000000 | B81: COMPRA DE BIENES PARA LA VENTA | C81: 4000000000 | D81: 0 | E81: 0 | F81: 4000000000 | H81: 4000000000 | J81: 3999999580 | K81: 0.999999895
A82: 332010101000000 | B82: MEDIDORES | C82: 4000000000 | D82: 0 | E82: 0 | F82: 4000000000 | H82: 4000000000 | J82: 3999999580 | K82: 0.999999895
A83: 332010200000000 | B83: COMPRA DE SERVICIOS PARA LA VENTA | C83: 10638855000 | D83: 0 | E83: 1030374263 | F83: 11669229263 | H83: 11669229263 | I83: 0 | J83: 1009871731 | K83: 0.08654142517 | L83: 1391217320 | M83: 79188442 | N83: 348443722 | O83: 0.02986004595 | P83: 0.2504595917
A84: 332010201000000 | B84: GESTION COMERCIAL | C84: 10638855000 | D84: 0 | E84: 402147559 | F84: 11041002559 | H84: 11041002559 | I84: 0 | J84: 381645027 | K84: 0.03456615692 | L84: 762990616 | M84: 79188442 | N84: 79188442 | O84: 0.007172214804 | P84: 0.1037869147
A85: 332010204000000 | B85: PROCESO DE ASEO | D85: 0 | E85: 628226704 | F85: 628226704 | H85: 628226704 | J85: 628226704 | K85: 1 | L85: 628226704 | N85: 269255280 | O85: 0.4285957255 | P85: 0.4285957255
A86: 332010500000000 | B86: OTROS GASTOS DE COMERCIALIZACION | C86: 107951187000 | D86: 21463702174 | E86: -37065330 | F86: 107914121670 | H86: 107914121670 | I86: 193437094 | J86: 11524017883 | K86: 0.1067887845 | L86: 12752840694 | M86: 1148076383 | N86: 4035319656 | O86: 0.03739380531 | P86: 0.3164251599
A87: 332010501000000 | B87: MANTENIMIENTO Y MATERIALES OPERACION INFRAESTRUCTURA | C87: 102301187000 | D87: 21099005000 | E87: -401762504 | F87: 101899424496 | H87: 101899424496 | I87: 193437094 | J87: 11524017883 | K87: 0.1130920802 | L87: 12752840694 | M87: 1148076383 | N87: 4035319656 | O87: 0.03960100536 | P87: 0.3164251599
A88: 332010502000000 | B88: COMERCIALIZACION DE ENERGIA | C88: 150000000 | F88: 150000000 | H88: 150000000
A89: 332010503000000 | B89: FONDO ATENCION EMERGENCIAS | C89: 4000000000 | D89: 364697174 | E89: 364697174 | F89: 4364697174 | H89: 4364697174
A90: 332010504000000 | B90: FONDO OBLIGACIONES CONTIGENTES | C90: 1500000000 | F90: 1500000000 | H90: 1500000000
A91: 332020000000000 | B91: GASTOS DE PRODUCCION | C91: 119951222000 | D91: 2300002000 | E91: 0 | F91: 119951222000 | H91: 119951222000 | I91: 3572719425 | J91: 79221616675 | K91: 0.6604486003 | L91: 58349156554 | M91: 7802827219 | N91: 26443954015 | O91: 0.2204558951 | P91: 0.4532019926
A92: 332020100000000 | B92: INDUSTRIAL | C92: 119951222000 | D92: 2300002000 | E92: 0 | F92: 119951222000 | H92: 119951222000 | I92: 3572719425 | J92: 79221616675 | K92: 0.6604486003 | L92: 58349156554 | M92: 7802827219 | N92: 26443954015 | O92: 0.2204558951 | P92: 0.4532019926
A93: 332020101000000 | B93: COMPRA AGUA EN BLOQUE | C93: 19933196000 | F93: 19933196000 | H93: 19933196000 | I93: 6835026 | J93: 6835026 | K93: 0.0003428966434 | L93: 19933196000
A94: 332020102000000 | B94: ENERGIA PARA BOMBEO | C94: 59707405000 | D94: 0 | E94: 0 | F94: 59707405000 | H94: 59707405000 | I94: 0 | J94: 59707405000 | K94: 1 | L94: 23933210786 | M94: 4280787405 | N94: 17831218114 | O94: 0.2986433276 | P94: 0.7450407834
A95: 332020103000000 | B95: TASA POR USO DE AGUA | C95: 6740115000 | D95: 0 | E95: 0 | F95: 6740115000 | H95: 6740115000 | I95: 2328879399 | J95: 3087854681 | K95: 0.4581308599 | L95: 3087112517 | M95: 2328879399 | N95: 3087102786 | O95: 0.4580193047 | P95: 0.9999968479
A96: 332020109000000 | B96: PRODUCTOS QUIMICOS | C96: 33570506000 | D96: 2300002000 | E96: 0 | F96: 33570506000 | H96: 33570506000 | I96: 1237005000 | J96: 16419521968 | K96: 0.4891055848 | L96: 11395637251 | M96: 1193160415 | N96: 5525633115 | O96: 0.1645978501 | P96: 0.4848902254
A97: 332030000000000 | B97: CUENTAS POR PAGAR | C97: 74951418000 | D97: 0 | E97: 22770395241 | F97: 97721813241 | H97: 97721813241 | I97: -8339 | J97: 96500882554 | K97: 0.9875060578 | L97: 65893932402 | M97: 5086369353 | N97: 36078490385 | O97: 0.3691958754 | P97: 0.5475237108
A98: 332030000000000 | B98: CUENTAS POR PAGAR | C98: 74951418000 | D98: 0 | E98: 22770395241 | F98: 97721813241 | H98: 97721813241 | I98: -8339 | J98: 96500882554 | K98: 0.9875060578 | L98: 65893932402 | M98: 5086369353 | N98: 36078490385 | O98: 0.3691958754 | P98: 0.5475237108
A99: 333000000000000 | B99: SERVICIO DE LA DEUDA | C99: 153572347000 | D99: 303368570 | E99: 303368570 | F99: 153875715570 | H99: 153875715570 | I99: -1829755673 | J99: 132088386785 | K99: 0.8584095697 | L99: 128798258890 | M99: 2368493000 | N99: 126730371215 | O99: 0.8235891592 | P99: 0.9839447544
A100: 333010000000000 | B100: DEUDA INTERNA | C100: 133333821000 | D100: -4297629430 | E100: -4300000000 | F100: 129033821000 | H100: 129033821000 | I100: -4198248673 | J100: 127167260215 | K100: 0.9855343291 | L100: 122420888890 | N100: 121811615215 | O100: 0.9440285831 | P100: 0.9950231233
A101: 333010100000000 | B101: AMORTIZACION | C101: 77404000000 | D101: 0 | E101: 37028000000 | F101: 114432000000 | H101: 114432000000 | J101: 114430888888 | K101: 0.9999902902 | L101: 114432000000 | N101: 114430888888 | O101: 0.9999902902 | P101: 0.9999902902
A102: 333010200000000 | B102: INTERESES | C102: 55330821000 | D102: -4297629430 | E102: -41328000000 | F102: 14002821000 | H102: 14002821000 | I102: -4198248673 | J102: 12736371327 | K102: 0.9095575332 | L102: 7988888890 | N102: 7380726327 | O102: 0.5270885293 | P102: 0.923873949
A103: 333010300000000 | B103: COMISIONES Y OTROS | C103: 599000000 | F103: 599000000 | H103: 599000000
A104: 333030000000000 | B104: BONOS PENSIONALES | C104: 3427370000 | D104: 4300000000 | E104: 4300000000 | F104: 7727370000 | H104: 7727370000 | I104: 2368493000 | J104: 4918756000 | K104: 0.6365368812 | L104: 6377370000 | M104: 2368493000 | N104: 4918756000 | O104: 0.6365368812 | P104: 0.7712828329
A105: 333030000000000 | B105: BONOS PENSIONALES | C105: 3427370000 | D105: 4300000000 | E105: 4300000000 | F105: 7727370000 | H105: 7727370000 | I105: 2368493000 | J105: 4918756000 | K105: 0.6365368812 | L105: 6377370000 | M105: 2368493000 | N105: 4918756000 | O105: 0.6365368812 | P105: 0.7712828329
A106: 333040000000000 | B106: CUENTAS POR PAGAR | D106: 0 | E106: 2370570 | F106: 2370570 | H106: 2370570 | J106: 2370570 | K106: 1
A107: 333040000000000 | B107: CUENTAS POR PAGAR | D107: 0 | E107: 2370570 | F107: 2370570 | H107: 2370570 | J107: 2370570 | K107: 1
A108: 333050000000000 | B108: PASIVOS CONTINGENTES | C108: 16811156000 | D108: 300998000 | E108: 300998000 | F108: 17112154000 | H108: 17112154000
A109: 333050000000000 | B109: PASIVOS CONTINGENTES | C109: 16811156000 | D109: 300998000 | E109: 300998000 | F109: 17112154000 | H109: 17112154000
A110: 334000000000000 | B110: INVERSION | C110: 3417897390000 | D110: 27815292738 | E110: 27815292738 | F110: 3445712682738 | H110: 3445712682738 | I110: 56375008281 | J110: 1299406951743 | K110: 0.3771083289 | L110: 525800147408 | M110: 48858696477 | N110: 197808060799 | O110: 0.05740700953 | P110: 0.37620389
A111: 334010000000000 | B111: DIRECTA | C111: 1783511313000 | D111: 43135761507 | E111: 19285304700 | F111: 1802796617700 | H111: 1802796617700 | I111: 42990880995 | J111: 521331555886 | K111: 0.289179351 | L111: 108231240327 | M111: 1927077088 | N111: 17139430541 | O111: 0.009507134844 | P111: 0.1583593655
A112: 334011500000000 | B112: BOGOTA MEJOR PARA TODOS | C112: 1783511313000 | D112: 43135761507 | E112: 19285304700 | F112: 1802796617700 | H112: 1802796617700 | I112: 42990880995 | J112: 521331555886 | K112: 0.289179351 | L112: 108231240327 | M112: 1927077088 | N112: 17139430541 | O112: 0.009507134844 | P112: 0.1583593655
A113: 334011502000000 | B113: PILAR DEMOCRACIA URBANA | C113: 1590353907000 | D113: 37603524340 | E113: 16267916009 | F113: 1606621823009 | H113: 1606621823009 | I113: 36963198777 | J113: 475037783941 | K113: 0.2956749231 | L113: 81272206520 | M113: 955722348 | N113: 15621666043 | O113: 0.009723300044 | P113: 0.1922141248
A114: 334011502130000 | B114: INFRAESTRUCTURA PARA EL DESARROLLO DEL HABITAT | C114: 1590353907000 | D114: 37603524340 | E114: 16267916009 | F114: 1606621823009 | H114: 1606621823009 | I114: 36963198777 | J114: 475037783941 | K114: 0.2956749231 | L114: 81272206520 | M114: 955722348 | N114: 15621666043 | O114: 0.009723300044 | P114: 0.1922141248
A115: 334011502130133 | B115: INFRAESTRUCTURA PARA EL DESARROLLO DEL HABITAT | C115: 1590353907000 | D115: 37603524340 | E115: 16267916009 | F115: 1606621823009 | H115: 1606621823009 | I115: 36963198777 | J115: 475037783941 | K115: 0.2956749231 | L115: 81272206520 | M115: 955722348 | N115: 15621666043 | O115: 0.009723300044 | P115: 0.1922141248
A116: 334011502130133000019 | B116: 0019 - CONST.REDES LOCALES PARA EL SERVICIO ALCANTARILLADO P | C116: 46423998000 | D116: 233977619 | E116: 795026002 | F116: 47219024002 | H116: 47219024002 | I116: 428300831 | J116: 8626558517 | K116: 0.1826924359 | L116: 5873025968 | N116: 274851931 | O116: 0.005820788058 | P116: 0.04679903213
A117: 334011502130133000019 | B117: CONST. REDES LOCALES SERVICIO DE ALCANTARILLADO PLUVIAL | C117: 46423998000 | D117: 233977619 | E117: 795026002 | F117: 47219024002 | H117: 47219024002 | I117: 428300831 | J117: 8626558517 | K117: 0.1826924359 | L117: 5873025968 | N117: 274851931 | O117: 0.005820788058 | P117: 0.04679903213
A118: 334011502130133000020 | B118: 0020 - CONST.REDES LOCALES SERVICIO DE ALCANTARILLADO SANITA | C118: 67831563000 | D118: 290004439 | E118: -8056190038 | F118: 59775372962 | H118: 59775372962 | I118: 361226956 | J118: 5020336008 | K118: 0.08398669484 | L118: 4010583914
A119: 334011502130133000020 | B119: CONST. REDES LOCALES SERVICIO DE ALCANTARILLADO SANITARIO | C119: 67831563000 | D119: 290004439 | E119: -8056190038 | F119: 59775372962 | H119: 59775372962 | I119: 361226956 | J119: 5020336008 | K119: 0.08398669484 | L119: 4010583914
A120: 334011502130133000021 | B120: 0021 - CONST.SISTEMA TRONCAL Y SECUNDARIO ALCANTARILLADO SAN | C120: 15776019000 | D120: -195557174 | E120: -5201828862 | F120: 10574190138 | H120: 10574190138 | I120: 0 | J120: 3798784022 | K120: 0.3592505877 | L120: 2029000729
A121: 334011502130133000021 | B121: CONST. SISTEMA TRONCAL Y SECUNDARIO ALCANTARILLADO SANITARIO | C121: 15776019000 | D121: -195557174 | E121: -5201828862 | F121: 10574190138 | H121: 10574190138 | I121: 0 | J121: 3798784022 | K121: 0.3592505877 | L121: 2029000729
A122: 334011502130133000022 | B122: 0022 - CONST.SISTEMA TRONCAL Y SECUNDARIO DE ALCANTARILLADO | C122: 16877024000 | D122: 0 | E122: 32522780353 | F122: 49399804353 | H122: 49399804353 | I122: 0 | J122: 46094004875 | K122: 0.9330807172 | L122: 13105401613 | N122: 8602646383 | O122: 0.174143329 | P122: 0.6564198975
A123: 334011502130133000022 | B123: CONST. SISTEMA TRONCAL Y SECUNDARIO ALCANTARILLADO PLUVIAL | C123: 16877024000 | D123: 0 | E123: 32522780353 | F123: 49399804353 | H123: 49399804353 | I123: 0 | J123: 46094004875 | K123: 0.9330807172 | L123: 13105401613 | N123: 8602646383 | O123: 0.174143329 | P123: 0.6564198975
A124: 334011502130133000050 | B124: 0050 - RENOV,REHAB.O REPOS. SIST.ABAST. Y DISTRIB. MATRIZ AC | C124: 361732708000 | D124: 20849521415 | E124: -3213493476 | F124: 358519214524 | H124: 358519214524 | I124: 35317095 | J124: 6903700855 | K124: 0.01925615302 | L124: 12779259293 | M124: 5501538 | N124: 4003221444 | O124: 0.01116598855 | P124: 0.3132592705
A125: 334011502130133000050 | B125: REN, REHAB O REP SIST ABAST, DIST MATRIZ Y RED LOCAL AC. | C125: 361732708000 | D125: 20849521415 | E125: -3213493476 | F125: 358519214524 | H125: 358519214524 | I125: 35317095 | J125: 6903700855 | K125: 0.01925615302 | L125: 12779259293 | M125: 5501538 | N125: 4003221444 | O125: 0.01116598855 | P125: 0.3132592705
A126: 334011502130133000051 | B126: 0051 - RENOV,REHAB.O REPOS.SIST.TRONCAL,SEC. Y LOCAL ALC.SA | C126: 150553278000 | D126: 1102778354 | E126: -20847497880 | F126: 129705780120 | H126: 129705780120 | I126: 355282274 | J126: 64872890304 | K126: 0.500154197 | L126: 8636933372 | M126: 22848715 | N126: 474252474 | O126: 0.003656371162 | P126: 0.05490982199
A127: 334011502130133000051 | B127: REN, REHAB O REP SIST TRONCAL SECUNDARIO Y LOCAL ALC. SANITA | C127: 150553278000 | D127: 1102778354 | E127: -20847497880 | F127: 129705780120 | H127: 129705780120 | I127: 355282274 | J127: 64872890304 | K127: 0.500154197 | L127: 8636933372 | M127: 22848715 | N127: 474252474 | O127: 0.003656371162 | P127: 0.05490982199
A128: 334011502130133000052 | B128: 0052 - RENOV,REHAB.O REPOS.SIST.TRONCAL, SEC. Y LOCAL ALC. P | C128: 97926991000 | D128: 3518857033 | E128: -491078287 | F128: 97435912713 | H128: 97435912713 | I128: 90208171 | J128: 57667609679 | K128: 0.5918516908 | L128: 11404027888 | M128: 626041437 | N128: 627263857 | O128: 0.006437706997 | P128: 0.05500371125
A129: 334011502130133000052 | B129: REN REHAB O REP SIST TRONCAL SECUNDARIO Y LOCAL ALC. PLUVIAL | C129: 97926991000 | D129: 3518857033 | E129: -491078287 | F129: 97435912713 | H129: 97435912713 | I129: 90208171 | J129: 57667609679 | K129: 0.5918516908 | L129: 11404027888 | M129: 626041437 | N129: 627263857 | O129: 0.006437706997 | P129: 0.05500371125
A130: 334011502130133000053 | B130: 0053 - RENOV,REHAB.O REPOS.SIST.TRONCAL, SEC. Y LOCAL ALC. C | C130: 28895578000 | D130: 3042835632 | E130: 1316529209 | F130: 30212107209 | H130: 30212107209 | I130: 0 | J130: 15763742149 | K130: 0.5217690391 | L130: 3595300534
A131: 334011502130133000053 | B131: REN, REHAB O REP SIST TRONCAL, SECUNDARIO Y LOCAL ALC. COMBI | C131: 28895578000 | D131: 3042835632 | E131: 1316529209 | F131: 30212107209 | H131: 30212107209 | I131: 0 | J131: 15763742149 | K131: 0.5217690391 | L131: 3595300534
A132: 334011502130133000054 | B132: 0054 - ACCIONES PARA EL SANEAMIENTO DEL RIO BOGOTA | C132: 85540318000 | D132: -84 | E132: 7202371280 | F132: 92742689280 | H132: 92742689280 | J132: 82073233040 | K132: 0.8849563634 | L132: 0
A133: 334011502130133000054 | B133: ACCIONES PARA EL SANEAMIENTO DEL RÍO BOGOTÁ | C133: 85540318000 | D133: -84 | E133: 7202371280 | F133: 92742689280 | H133: 92742689280 | J133: 82073233040 | K133: 0.8849563634 | L133: 0
A134: 334011502130133000068 | B134: 0068 - CONST,RENOV,REHAB.O REPOS.REDES ASOC.A INFRAESTRUCTUR | C134: 75000000000 | D134: 195557174 | E134: 23220723538 | F134: 98220723538 | H134: 98220723538 | I134: 0 | J134: 544302000 | K134: 0.005541620754 | L134: 68236636 | M134: 19551068 | N134: 19551068 | O134: 0.000199052372 | P134: 0.2865186379
A135: 334011502130133000068 | B135: CONST, REN, REHAB O REP REDES ASOCIADAS INFRAESTRUCTURA VIAL | C135: 75000000000 | D135: 195557174 | E135: 23220723538 | F135: 98220723538 | H135: 98220723538 | I135: 0 | J135: 544302000 | K135: 0.005541620754 | L135: 68236636 | M135: 19551068 | N135: 19551068 | O135: 0.000199052372 | P135: 0.2865186379
A136: 334011502130133000081 | B136: 0081 - CORREDORES AMBIENTALES | C136: 354634309000 | D136: 8337778048 | E136: 5421093901 | F136: 360055402901 | H136: 360055402901 | I136: 35645210541 | J136: 79307918394 | K136: 0.2202658751 | L136: 10480434793 | M136: 102669574 | N136: 509267673 | O136: 0.001414414751 | P136: 0.04859222762
A137: 334011502130133000081 | B137: CORREDORES AMBIENTALES | C137: 354634309000 | D137: 8337778048 | E137: 5421093901 | F137: 360055402901 | H137: 360055402901 | I137: 35645210541 | J137: 79307918394 | K137: 0.2202658751 | L137: 10480434793 | M137: 102669574 | N137: 509267673 | O137: 0.001414414751 | P137: 0.04859222762
A138: 334011502130133007334 | B138: 7334 - CONST.Y EXPANSION SISTEMA ABASTECIMIENTO Y MATRIZ AC | C138: 249020376000 | D138: 126570005 | E138: -519755774 | F138: 248500620226 | H138: 248500620226 | I138: 47652909 | J138: 99572022934 | K138: 0.4006912451 | L138: 7530521425 | M138: 179110016 | N138: 1110611213 | O138: 0.00446924926 | P138: 0.1474813164
A139: 334011502130133007334 | B139: CONST Y EXPANSIÓN DEL SISTEMA DE ABASTECIMIENTO Y MATRIZ AC. | C139: 249020376000 | D139: 126570005 | E139: -519755774 | F139: 248500620226 | H139: 248500620226 | I139: 47652909 | J139: 99572022934 | K139: 0.4006912451 | L139: 7530521425 | M139: 179110016 | N139: 1110611213 | O139: 0.00446924926 | P139: 0.1474813164
A140: 334011502130133007338 | B140: 7338 - CONSTRUCCION DE REDES LOCALES PARA EL SERVICIO DE ACU | C140: 40141745000 | D140: 101201879 | E140: -15880763957 | F140: 24260981043 | H140: 24260981043 | I140: 0 | J140: 4792681164 | K140: 0.1975468822 | L140: 1759480355
A141: 334011502130133007338 | B141: CONSTRUCCIÓN DE REDES LOCALES PARA EL SERVICIO DE ACUEDUCTO | C141: 40141745000 | D141: 101201879 | E141: -15880763957 | F141: 24260981043 | H141: 24260981043 | I141: 0 | J141: 4792681164 | K141: 0.1975468822 | L141: 1759480355
A142: 334011506000000 | B142: EJE TRANSV. SOSTENIB. AMBIENTAL BASADA EFICIENCIA ENERGETICA | C142: 94382111000 | D142: 8939986620 | E142: 9316687162 | F142: 103698798162 | H142: 103698798162 | I142: 5917068881 | J142: 43866444610 | K142: 0.4230178689 | L142: 9745225765 | M142: 971354740 | N142: 1337775636 | O142: 0.01290058959 | P142: 0.1372749763
A143: 334011506380000 | B143: RECUPERACION Y MANEJO ESTRUCTURA ECOLOGICA PRINCIPAL | C143: 8151000000 | D143: 85132586 | E143: 7832236671 | F143: 15983236671 | H143: 15983236671 | I143: 5900212636 | J143: 7043367153 | K143: 0.4406721428 | L143: 2493298059 | M143: 52245862 | N143: 80921371 | O143: 0.005062890118 | P143: 0.03245555448
A144: 334011506380177 | B144: CONSOLIDACION DE LA ESTRUCTURA ECOLOGICA PRINCIPAL | C144: 8151000000 | D144: 85132586 | E144: 7832236671 | F144: 15983236671 | H144: 15983236671 | I144: 5900212636 | J144: 7043367153 | K144: 0.4406721428 | L144: 2493298059 | M144: 52245862 | N144: 80921371 | O144: 0.005062890118 | P144: 0.03245555448
A145: 334011506380177007341 | B145: 7341 - ADEC.HIDRAULICA RECUP.AMB.HUMED,QUEBRADAS,RIOS CUENCA | C145: 8151000000 | D145: 85132586 | E145: 7832236671 | F145: 15983236671 | H145: 15983236671 | I145: 5900212636 | J145: 7043367153 | K145: 0.4406721428 | L145: 2493298059 | M145: 52245862 | N145: 80921371 | O145: 0.005062890118 | P145: 0.03245555448
A146: 334011506380177007341 | B146: ADECUACIÓN HIDRÁULICA Y RECUPERACIÓN AMBIENTAL DE HUMEDALES, | C146: 8151000000 | D146: 85132586 | E146: 7832236671 | F146: 15983236671 | H146: 15983236671 | I146: 5900212636 | J146: 7043367153 | K146: 0.4406721428 | L146: 2493298059 | M146: 52245862 | N146: 80921371 | O146: 0.005062890118 | P146: 0.03245555448
A147: 334011506390000 | B147: AMBIENTE SANO PARA LA EQUIDAD Y DISFRUTE DEL CIUDADANO | C147: 86231111000 | D147: 8854854034 | E147: 1484450491 | F147: 87715561491 | H147: 87715561491 | I147: 16856245 | J147: 36823077457 | K147: 0.4198009661 | L147: 7251927706 | M147: 919108878 | N147: 1256854265 | O147: 0.01432874901 | P147: 0.1733131267
A148: 334011506390179 | B148: AMBIENTE SANO | C148: 86231111000 | D148: 8854854034 | E148: 1484450491 | F148: 87715561491 | H148: 87715561491 | I148: 16856245 | J148: 36823077457 | K148: 0.4198009661 | L148: 7251927706 | M148: 919108878 | N148: 1256854265 | O148: 0.01432874901 | P148: 0.1733131267
A149: 334011506390179000082 | B149: 0082 - PLAN DE SANEAMIENTO Y MANEJO DE VERTIMIENTOS | C149: 86231111000 | D149: 8854854034 | E149: 1484450491 | F149: 87715561491 | H149: 87715561491 | I149: 16856245 | J149: 36823077457 | K149: 0.4198009661 | L149: 7251927706 | M149: 919108878 | N149: 1256854265 | O149: 0.01432874901 | P149: 0.1733131267
A150: 334011506390179000082 | B150: PLAN DE SANEAMIENTO Y MANEJO DE VERTIMIENTOS | C150: 86231111000 | D150: 8854854034 | E150: 1484450491 | F150: 87715561491 | H150: 87715561491 | I150: 16856245 | J150: 36823077457 | K150: 0.4198009661 | L150: 7251927706 | M150: 919108878 | N150: 1256854265 | O150: 0.01432874901 | P150: 0.1733131267
A151: 334011507000000 | B151: EJE TRANSVERSAL GOBIERNO LEGITIMO, FORT. LOCAL Y EFICIENTE | C151: 98775295000 | D151: -3407749453 | E151: -6299298471 | F151: 92475996529 | H151: 92475996529 | I151: 110613337 | J151: 2427327335 | K151: 0.02624818792 | L151: 17213808042 | N151: 179988862 | O151: 0.001946330602 | P151: 0.01045607466
A152: 334011507420000 | B152: TRANSPARENCIA, GESTION PUBLICA Y SERVICIO A LA CIUDADANIA | C152: 98775295000 | D152: -3407749453 | E152: -6299298471 | F152: 92475996529 | H152: 92475996529 | I152: 110613337 | J152: 2427327335 | K152: 0.02624818792 | L152: 17213808042 | N152: 179988862 | O152: 0.001946330602 | P152: 0.01045607466
A153: 334011507420185 | B153: FORTALECIMIENTO A LA GESTION PUBLICA EFECTIVA Y EFICIENTE | C153: 98775295000 | D153: -3407749453 | E153: -6299298471 | F153: 92475996529 | H153: 92475996529 | I153: 110613337 | J153: 2427327335 | K153: 0.02624818792 | L153: 17213808042 | N153: 179988862 | O153: 0.001946330602 | P153: 0.01045607466
A154: 334011507420185000055 | B154: 0055 - FORTALECIMIENTO ADMINISTRATIVO Y OPERATIVO EMPRESARIA | C154: 98775295000 | D154: -3407749453 | E154: -6299298471 | F154: 92475996529 | H154: 92475996529 | I154: 110613337 | J154: 2427327335 | K154: 0.02624818792 | L154: 17213808042 | N154: 179988862 | O154: 0.001946330602 | P154: 0.01045607466
A155: 334011507420185000055 | B155: FORTALECIMIENTO ADMINISTRATIVO Y OPERATIVO EMPRESARIAL | C155: 98775295000 | D155: -3407749453 | E155: -6299298471 | F155: 92475996529 | H155: 92475996529 | I155: 110613337 | J155: 2427327335 | K155: 0.02624818792 | L155: 17213808042 | N155: 179988862 | O155: 0.001946330602 | P155: 0.01045607466
A156: 334020000000000 | B156: TRANSFERENCIAS PARA INVERSION | C156: 872741045000 | D156: -2800503046 | E156: 11017085988 | F156: 883758130988 | H156: 883758130988 | I156: 14481849560 | J156: 19481849560 | K156: 0.02204432285 | L156: 25389804000 | M156: 14481849560 | N156: 19481849560 | O156: 0.02204432285 | P156: 0.7673099627
A157: 334020200000000 | B157: EMPRESAS DISTRITALES | C157: 872741045000 | D157: -2800503046 | E157: 11017085988 | F157: 883758130988 | H157: 883758130988 | I157: 14481849560 | J157: 19481849560 | K157: 0.02204432285 | L157: 25389804000 | M157: 14481849560 | N157: 19481849560 | O157: 0.02204432285 | P157: 0.7673099627
A158: 334030000000000 | B158: CUENTAS POR PAGAR | C158: 761645032000 | D158: -12519965723 | E158: -2487097950 | F158: 759157934050 | H158: 759157934050 | I158: -1097722274 | J158: 758593546297 | K158: 0.9992565608 | L158: 392179103081 | M158: 32449769829 | N158: 161186780698 | O158: 0.2123231194 | P158: 0.4110029816
A159: 334030000000000 | B159: CUENTAS POR PAGAR | C159: 761645032000 | D159: -12519965723 | E159: -2487097950 | F159: 759157934050 | H159: 759157934050 | I159: -1097722274 | J159: 758593546297 | K159: 0.9992565608 | L159: 392179103081 | M159: 32449769829 | N159: 161186780698 | O159: 0.2123231194 | P159: 0.4110029816
A160: 340000000000000 | B160: DISPONIBILIDAD FINAL | C160: 238551564000 | D160: 187868408437 | E160: 187868408437 | F160: 426419972437 | H160: 426419972437
A161: 340000000000000 | B161: DISPONIBILIDAD FINAL | C161: 238551564000 | D161: 187868408437 | E161: 187868408437 | F161: 426419972437 | H161: 426419972437
